Department family,Entity,Date,Expense Type,Expense area,Supplier,Transaction number,AP Amount (�)
Department of Health,NHS Sheffield CCG,30/09/2017,C&M-PMS Contract Value,PRC DELEGATED CO-COMMISSIONING,ABBEY LANE SURGERY,18757020,"22,033.14 "
Department of Health,NHS Sheffield CCG,30/09/2017,C&M-PMS DES Extended Hours Access,PRC DELEGATED CO-COMMISSIONING,ABBEY LANE SURGERY,18757020,"1,480.58 "
Department of Health,NHS Sheffield CCG,30/09/2017,C&M-PMS Funding Differential Review,PRC DELEGATED CO-COMMISSIONING,ABBEY LANE SURGERY,18757020,"1,105.08 "
Department of Health,NHS Sheffield CCG,30/09/2017,C&M-PMS Out of Hours Opt Outs,PRC DELEGATED CO-COMMISSIONING,ABBEY LANE SURGERY,18757020,24.29 
Department of Health,NHS Sheffield CCG,30/09/2017,C&M-PMS PCO Other,PRC DELEGATED CO-COMMISSIONING,ABBEY LANE SURGERY,18757020,384.50 
Department of Health,NHS Sheffield CCG,30/09/2017,C&M-PMS Prem Notional Rent,PRC DELEGATED CO-COMMISSIONING,ABBEY LANE SURGERY,18757020,"2,122.92 "
Department of Health,NHS Sheffield CCG,30/09/2017,C&M-PMS Prem Rates,PRC DELEGATED CO-COMMISSIONING,ABBEY LANE SURGERY,18757020,700.00 
Department of Health,NHS Sheffield CCG,30/09/2017,C&M-PMS QOF Aspiration,PRC DELEGATED CO-COMMISSIONING,ABBEY LANE SURGERY,18757020,"3,210.12 "
Department of Health,NHS Sheffield CCG,30/09/2017,Cont Care-Physical Disab (<65),CHC ADULT FULLY FUNDED,ALPINE HEALTH CARE,18847715,"25,695.82 "
Department of Health,NHS Sheffield CCG,30/09/2017,External Consultancy Fees,BEREAVEMENT SERVICE,ATTAIN HEALTH MANAGEMENT SERVICES LTD,18828134,"71,034.49 "
Department of Health,NHS Sheffield CCG,30/09/2017,External Consultancy Fees,BEREAVEMENT SERVICE,ATTAIN HEALTH MANAGEMENT SERVICES LTD,18828608,"(71,034.49)"
Department of Health,NHS Sheffield CCG,30/09/2017,Contract & Agency-Agency Int Mgr,BEREAVEMENT SERVICE,ATTAIN HEALTH MANAGEMENT SERVICES LTD,18968328,"32,497.94 "
Department of Health,NHS Sheffield CCG,30/09/2017,External Consultancy Fees,BEREAVEMENT SERVICE,ATTAIN HEALTH MANAGEMENT SERVICES LTD,18968335,"38,536.55 "
Department of Health,NHS Sheffield CCG,30/09/2017,Contract & Agency-Agency Int Mgr,BEREAVEMENT SERVICE,ATTAIN HEALTH MANAGEMENT SERVICES LTD,18968370,"34,927.06 "
Department of Health,NHS Sheffield CCG,30/09/2017,C&M-PMS Contract Value,PRC DELEGATED CO-COMMISSIONING,AVENUE MEDICAL CENTRE SHEFFIELD,18783759,"53,143.93 "
Department of Health,NHS Sheffield CCG,30/09/2017,C&M-PMS DES Extended Hours Access,PRC DELEGATED CO-COMMISSIONING,AVENUE MEDICAL CENTRE SHEFFIELD,18783759,"3,516.90 "
Department of Health,NHS Sheffield CCG,30/09/2017,C&M-PMS DES TPP QRISK,PRC DELEGATED CO-COMMISSIONING,AVENUE MEDICAL CENTRE SHEFFIELD,18783759,260.00 
Department of Health,NHS Sheffield CCG,30/09/2017,C&M-PMS Out of Hours Opt Outs,PRC DELEGATED CO-COMMISSIONING,AVENUE MEDICAL CENTRE SHEFFIELD,18783759,35.97 
Department of Health,NHS Sheffield CCG,30/09/2017,C&M-PMS PCO Other,PRC DELEGATED CO-COMMISSIONING,AVENUE MEDICAL CENTRE SHEFFIELD,18783759,452.60 
Department of Health,NHS Sheffield CCG,30/09/2017,C&M-PMS Prem Notional Rent,PRC DELEGATED CO-COMMISSIONING,AVENUE MEDICAL CENTRE SHEFFIELD,18783759,"5,546.67 "
Department of Health,NHS Sheffield CCG,30/09/2017,C&M-PMS Prem Rates,PRC DELEGATED CO-COMMISSIONING,AVENUE MEDICAL CENTRE SHEFFIELD,18783759,875.00 
Department of Health,NHS Sheffield CCG,30/09/2017,C&M-PMS Prem Water Rates,PRC DELEGATED CO-COMMISSIONING,AVENUE MEDICAL CENTRE SHEFFIELD,18783759,185.88 
Department of Health,NHS Sheffield CCG,30/09/2017,C&M-PMS QOF Aspiration,PRC DELEGATED CO-COMMISSIONING,AVENUE MEDICAL CENTRE SHEFFIELD,18783759,"6,441.78 "
Department of Health,NHS Sheffield CCG,30/09/2017,Hcare Srv Rec Fdtn Trust-Contract Baseline,ACUTE COMMISSIONING,BARNSLEY HOSPITAL NHS FOUNDATION TRUST,19032028,"(40,786.00)"
Department of Health,NHS Sheffield CCG,30/09/2017,C&M-PMS Contract Value,PRC DELEGATED CO-COMMISSIONING,BARNSLEY ROAD SURGERY,18757025,"21,360.14 "
Department of Health,NHS Sheffield CCG,30/09/2017,C&M-PMS Funding Differential Review,PRC DELEGATED CO-COMMISSIONING,BARNSLEY ROAD SURGERY,18757025,370.25 
Department of Health,NHS Sheffield CCG,30/09/2017,C&M-PMS PCO Other,PRC DELEGATED CO-COMMISSIONING,BARNSLEY ROAD SURGERY,18757025,384.50 
Department of Health,NHS Sheffield CCG,30/09/2017,C&M-PMS PCO Seniority,PRC DELEGATED CO-COMMISSIONING,BARNSLEY ROAD SURGERY,18757025,"1,589.74 "
Department of Health,NHS Sheffield CCG,30/09/2017,C&M-PMS Prem Notional Rent,PRC DELEGATED CO-COMMISSIONING,BARNSLEY ROAD SURGERY,18757025,"2,652.17 "
Department of Health,NHS Sheffield CCG,30/09/2017,C&M-PMS Prem Rates,PRC DELEGATED CO-COMMISSIONING,BARNSLEY ROAD SURGERY,18757025,629.00 
Department of Health,NHS Sheffield CCG,30/09/2017,C&M-PMS QOF Aspiration,PRC DELEGATED CO-COMMISSIONING,BARNSLEY ROAD SURGERY,18757025,"2,500.90 "
Department of Health,NHS Sheffield CCG,30/09/2017,C&M-GMS Cost of Drugs -Prescribing,LOCAL ENHANCED SERVICES,BASLOW ROAD & SHOREHAM STREET SURGERIES,18961624,519.19 
Department of Health,NHS Sheffield CCG,30/09/2017,C&M-GMS DES Extended Hours Access,PRC DELEGATED CO-COMMISSIONING,BASLOW ROAD & SHOREHAM STREET SURGERIES,18961624,"5,949.38 "
Department of Health,NHS Sheffield CCG,30/09/2017,C&M-GMS Global Sum,PRC DELEGATED CO-COMMISSIONING,BASLOW ROAD & SHOREHAM STREET SURGERIES,18961624,"92,294.84 "
Department of Health,NHS Sheffield CCG,30/09/2017,C&M-GMS MPIG Correction Factor,PRC DELEGATED CO-COMMISSIONING,BASLOW ROAD & SHOREHAM STREET SURGERIES,18961624,438.64 
Department of Health,NHS Sheffield CCG,30/09/2017,C&M-GMS PCO Seniority,PRC DELEGATED CO-COMMISSIONING,BASLOW ROAD & SHOREHAM STREET SURGERIES,18961624,"3,559.72 "
Department of Health,NHS Sheffield CCG,30/09/2017,C&M-GMS Prem Notional Rent,PRC DELEGATED CO-COMMISSIONING,BASLOW ROAD & SHOREHAM STREET SURGERIES,18961624,"8,511.25 "
Department of Health,NHS Sheffield CCG,30/09/2017,C&M-GMS Prem Rates,PRC DELEGATED CO-COMMISSIONING,BASLOW ROAD & SHOREHAM STREET SURGERIES,18961624,"2,062.00 "
Department of Health,NHS Sheffield CCG,30/09/2017,C&M-GMS Prof Fees Prescribing,PRC DELEGATED CO-COMMISSIONING,BASLOW ROAD & SHOREHAM STREET SURGERIES,18961624,71.73 
Department of Health,NHS Sheffield CCG,30/09/2017,C&M-GMS QOF Aspiration,PRC DELEGATED CO-COMMISSIONING,BASLOW ROAD & SHOREHAM STREET SURGERIES,18961624,"10,284.12 "
Department of Health,NHS Sheffield CCG,30/09/2017,C&M-PMS Contract Value,PRC DELEGATED CO-COMMISSIONING,BIRLEY HEALTH CENTRE,18783761,"61,070.67 "
Department of Health,NHS Sheffield CCG,30/09/2017,C&M-PMS DES Extended Hours Access,PRC DELEGATED CO-COMMISSIONING,BIRLEY HEALTH CENTRE,18783761,"4,019.45 "
Department of Health,NHS Sheffield CCG,30/09/2017,C&M-PMS DES TPP QRISK,PRC DELEGATED CO-COMMISSIONING,BIRLEY HEALTH CENTRE,18783761,240.50 
Department of Health,NHS Sheffield CCG,30/09/2017,C&M-PMS Funding Differential Review,PRC DELEGATED CO-COMMISSIONING,BIRLEY HEALTH CENTRE,18783761,"2,653.00 "
Department of Health,NHS Sheffield CCG,30/09/2017,C&M-PMS PCO Other,PRC DELEGATED CO-COMMISSIONING,BIRLEY HEALTH CENTRE,18783761,452.60 
Department of Health,NHS Sheffield CCG,30/09/2017,C&M-PMS PCO Seniority,PRC DELEGATED CO-COMMISSIONING,BIRLEY HEALTH CENTRE,18783761,"5,502.37 "
Department of Health,NHS Sheffield CCG,30/09/2017,C&M-PMS Prem Notional Rent,PRC DELEGATED CO-COMMISSIONING,BIRLEY HEALTH CENTRE,18783761,"7,775.48 "
Department of Health,NHS Sheffield CCG,30/09/2017,C&M-PMS QOF Aspiration,PRC DELEGATED CO-COMMISSIONING,BIRLEY HEALTH CENTRE,18783761,"8,879.62 "
Department of Health,NHS Sheffield CCG,30/09/2017,Clinical&Medical-Independent Sector,ACUTE COMMISSIONING,BMI HEALTHCARE COLLECTIONS,18807989,"77,530.74 "
Department of Health,NHS Sheffield CCG,30/09/2017,C&M-GMS Cost of Drugs -Prescribing,LOCAL ENHANCED SERVICES,BROOMHILL SURGERY,18961631,"2,875.26 "
Department of Health,NHS Sheffield CCG,30/09/2017,C&M-GMS DES Extended Hours Access,PRC DELEGATED CO-COMMISSIONING,BROOMHILL SURGERY,18961631,"4,512.03 "
Department of Health,NHS Sheffield CCG,30/09/2017,C&M-GMS Global Sum,PRC DELEGATED CO-COMMISSIONING,BROOMHILL SURGERY,18961631,"60,368.19 "
Department of Health,NHS Sheffield CCG,30/09/2017,C&M-GMS MPIG Correction Factor,PRC DELEGATED CO-COMMISSIONING,BROOMHILL SURGERY,18961631,753.01 
Department of Health,NHS Sheffield CCG,30/09/2017,C&M-GMS PCO Seniority,PRC DELEGATED CO-COMMISSIONING,BROOMHILL SURGERY,18961631,"4,614.54 "
Department of Health,NHS Sheffield CCG,30/09/2017,C&M-GMS Prem Cost Rent,PRC DELEGATED CO-COMMISSIONING,BROOMHILL SURGERY,18961631,"3,380.00 "
Department of Health,NHS Sheffield CCG,30/09/2017,C&M-GMS Prem Notional Rent,PRC DELEGATED CO-COMMISSIONING,BROOMHILL SURGERY,18961631,"2,541.67 "
Department of Health,NHS Sheffield CCG,30/09/2017,C&M-GMS Prem Rates,PRC DELEGATED CO-COMMISSIONING,BROOMHILL SURGERY,18961631,"1,794.00 "
Department of Health,NHS Sheffield CCG,30/09/2017,C&M-GMS Prof Fees Prescribing,PRC DELEGATED CO-COMMISSIONING,BROOMHILL SURGERY,18961631,189.75 
Department of Health,NHS Sheffield CCG,30/09/2017,C&M-GMS QOF Aspiration,PRC DELEGATED CO-COMMISSIONING,BROOMHILL SURGERY,18961631,"6,516.86 "
Department of Health,NHS Sheffield CCG,30/09/2017,C&M-GMS IT Comm Servs -GP Practices,PRIMARY CARE IT,BT GLOBAL SERVICES,18968412,"22,609.56 "
Department of Health,NHS Sheffield CCG,30/09/2017,Computer Software/License,ADMINISTRATION & BUSINESS SUPPORT,BT GLOBAL SERVICES,18968412,"8,673.96 "
Department of Health,NHS Sheffield CCG,30/09/2017,Computer Software/License,CORPORATE COSTS & SERVICES,BT GLOBAL SERVICES,18968412,"3,023.04 "
Department of Health,NHS Sheffield CCG,30/09/2017,Computer Software/License,HUMAN RESOURCES,BT GLOBAL SERVICES,18968412,423.12 
Department of Health,NHS Sheffield CCG,30/09/2017,C&M-GMS Cost of Drugs -Prescribing,LOCAL ENHANCED SERVICES,BUCHANAN ROAD SURGERY,18961627,332.64 
Department of Health,NHS Sheffield CCG,30/09/2017,C&M-GMS Global Sum,PRC DELEGATED CO-COMMISSIONING,BUCHANAN ROAD SURGERY,18961627,"34,944.36 "
Department of Health,NHS Sheffield CCG,30/09/2017,C&M-GMS MPIG Correction Factor,PRC DELEGATED CO-COMMISSIONING,BUCHANAN ROAD SURGERY,18961627,"1,965.76 "
Department of Health,NHS Sheffield CCG,30/09/2017,C&M-GMS PCO Seniority,PRC DELEGATED CO-COMMISSIONING,BUCHANAN ROAD SURGERY,18961627,673.12 
Department of Health,NHS Sheffield CCG,30/09/2017,C&M-GMS Prem Notional Rent,PRC DELEGATED CO-COMMISSIONING,BUCHANAN ROAD SURGERY,18961627,"2,595.83 "
Department of Health,NHS Sheffield CCG,30/09/2017,C&M-GMS Prem Rates,PRC DELEGATED CO-COMMISSIONING,BUCHANAN ROAD SURGERY,18961627,839.00 
Department of Health,NHS Sheffield CCG,30/09/2017,C&M-GMS Prof Fees Prescribing,PRC DELEGATED CO-COMMISSIONING,BUCHANAN ROAD SURGERY,18961627,90.25 
Department of Health,NHS Sheffield CCG,30/09/2017,C&M-GMS QOF Aspiration,PRC DELEGATED CO-COMMISSIONING,BUCHANAN ROAD SURGERY,18961627,"4,538.47 "
Department of Health,NHS Sheffield CCG,30/09/2017,C&M-PMS Contract Value,PRC DELEGATED CO-COMMISSIONING,BURNCROSS SURGERY,18783762,"117,589.75 "
Department of Health,NHS Sheffield CCG,30/09/2017,C&M-PMS DES Extended Hours Access,PRC DELEGATED CO-COMMISSIONING,BURNCROSS SURGERY,18783762,"7,419.98 "
Department of Health,NHS Sheffield CCG,30/09/2017,C&M-PMS DES TPP QRISK,PRC DELEGATED CO-COMMISSIONING,BURNCROSS SURGERY,18783762,"1,020.50 "
Department of Health,NHS Sheffield CCG,30/09/2017,C&M-PMS Funding Differential Review,PRC DELEGATED CO-COMMISSIONING,BURNCROSS SURGERY,18783762,"1,648.42 "
Department of Health,NHS Sheffield CCG,30/09/2017,C&M-PMS PCO Seniority,PRC DELEGATED CO-COMMISSIONING,BURNCROSS SURGERY,18783762,"4,624.22 "
Department of Health,NHS Sheffield CCG,30/09/2017,C&M-PMS Prem Notional Rent,PRC DELEGATED CO-COMMISSIONING,BURNCROSS SURGERY,18783762,"14,058.33 "
Department of Health,NHS Sheffield CCG,30/09/2017,C&M-PMS QOF Aspiration,PRC DELEGATED CO-COMMISSIONING,BURNCROSS SURGERY,18783762,"14,930.79 "
Department of Health,NHS Sheffield CCG,30/09/2017,C&M-PMS Contract Value,PRC DELEGATED CO-COMMISSIONING,BURNGREAVE SURGERY,18783763,"53,575.14 "
Department of Health,NHS Sheffield CCG,30/09/2017,C&M-PMS DES Extended Hours Access,PRC DELEGATED CO-COMMISSIONING,BURNGREAVE SURGERY,18783763,"3,134.05 "
Department of Health,NHS Sheffield CCG,30/09/2017,C&M-PMS DES TPP QRISK,PRC DELEGATED CO-COMMISSIONING,BURNGREAVE SURGERY,18783763,260.00 
Department of Health,NHS Sheffield CCG,30/09/2017,C&M-PMS Funding Differential Review,PRC DELEGATED CO-COMMISSIONING,BURNGREAVE SURGERY,18783763,"1,353.08 "
Department of Health,NHS Sheffield CCG,30/09/2017,C&M-PMS Out of Hours Opt Outs,PRC DELEGATED CO-COMMISSIONING,BURNGREAVE SURGERY,18783763,18.39 
Department of Health,NHS Sheffield CCG,30/09/2017,C&M-PMS PCO Seniority,PRC DELEGATED CO-COMMISSIONING,BURNGREAVE SURGERY,18783763,"1,825.18 "
Department of Health,NHS Sheffield CCG,30/09/2017,C&M-PMS Prem Notional Rent,PRC DELEGATED CO-COMMISSIONING,BURNGREAVE SURGERY,18783763,"5,979.16 "
Department of Health,NHS Sheffield CCG,30/09/2017,C&M-PMS Prem Rates,PRC DELEGATED CO-COMMISSIONING,BURNGREAVE SURGERY,18783763,"1,877.00 "
Department of Health,NHS Sheffield CCG,30/09/2017,C&M-PMS QOF Aspiration,PRC DELEGATED CO-COMMISSIONING,BURNGREAVE SURGERY,18783763,"5,148.30 "
Department of Health,NHS Sheffield CCG,30/09/2017,C&M-GMS Cost of Drugs -Prescribing,LOCAL ENHANCED SERVICES,CARTERKNOWLE & DORE MEDICAL PRACTICE,18979785,"3,187.45 "
Department of Health,NHS Sheffield CCG,30/09/2017,C&M-GMS DES Extended Hours Access,PRC DELEGATED CO-COMMISSIONING,CARTERKNOWLE & DORE MEDICAL PRACTICE,18979785,"5,872.90 "
Department of Health,NHS Sheffield CCG,30/09/2017,C&M-GMS DES TPP QRISK,PRC DELEGATED CO-COMMISSIONING,CARTERKNOWLE & DORE MEDICAL PRACTICE,18979785,"1,196.00 "
Department of Health,NHS Sheffield CCG,30/09/2017,C&M-GMS Global Sum,PRC DELEGATED CO-COMMISSIONING,CARTERKNOWLE & DORE MEDICAL PRACTICE,18979785,"79,448.87 "
Department of Health,NHS Sheffield CCG,30/09/2017,C&M-GMS MPIG Correction Factor,PRC DELEGATED CO-COMMISSIONING,CARTERKNOWLE & DORE MEDICAL PRACTICE,18979785,"2,241.88 "
Department of Health,NHS Sheffield CCG,30/09/2017,C&M-GMS PCO Seniority,PRC DELEGATED CO-COMMISSIONING,CARTERKNOWLE & DORE MEDICAL PRACTICE,18979785,"3,280.47 "
Department of Health,NHS Sheffield CCG,30/09/2017,C&M-GMS Prem Notional Rent,PRC DELEGATED CO-COMMISSIONING,CARTERKNOWLE & DORE MEDICAL PRACTICE,18979785,"7,538.34 "
Department of Health,NHS Sheffield CCG,30/09/2017,C&M-GMS Prof Fees Prescribing,PRC DELEGATED CO-COMMISSIONING,CARTERKNOWLE & DORE MEDICAL PRACTICE,18979785,282.31 
Department of Health,NHS Sheffield CCG,30/09/2017,C&M-GMS QOF Aspiration,PRC DELEGATED CO-COMMISSIONING,CARTERKNOWLE & DORE MEDICAL PRACTICE,18979785,"10,317.62 "
Department of Health,NHS Sheffield CCG,30/09/2017,C&M-GMS Cost of Drugs -Prescribing,LOCAL ENHANCED SERVICES,CHARNOCK HEALTH PRIMARY CARE CENTRE,18961633,559.71 
Department of Health,NHS Sheffield CCG,30/09/2017,C&M-GMS Global Sum,PRC DELEGATED CO-COMMISSIONING,CHARNOCK HEALTH PRIMARY CARE CENTRE,18961633,"38,204.75 "
Department of Health,NHS Sheffield CCG,30/09/2017,C&M-GMS MPIG Correction Factor,PRC DELEGATED CO-COMMISSIONING,CHARNOCK HEALTH PRIMARY CARE CENTRE,18961633,619.87 
Department of Health,NHS Sheffield CCG,30/09/2017,C&M-GMS PCO Other,PRC DELEGATED CO-COMMISSIONING,CHARNOCK HEALTH PRIMARY CARE CENTRE,18961633,452.60 
Department of Health,NHS Sheffield CCG,30/09/2017,C&M-GMS PCO Seniority,PRC DELEGATED CO-COMMISSIONING,CHARNOCK HEALTH PRIMARY CARE CENTRE,18961633,"1,989.64 "
Department of Health,NHS Sheffield CCG,30/09/2017,C&M-GMS Prem Notional Rent,PRC DELEGATED CO-COMMISSIONING,CHARNOCK HEALTH PRIMARY CARE CENTRE,18961633,305.00 
Department of Health,NHS Sheffield CCG,30/09/2017,C&M-GMS Prem Rates,PRC DELEGATED CO-COMMISSIONING,CHARNOCK HEALTH PRIMARY CARE CENTRE,18961633,"1,111.00 "
Department of Health,NHS Sheffield CCG,30/09/2017,C&M-GMS Prem Water Rates,PRC DELEGATED CO-COMMISSIONING,CHARNOCK HEALTH PRIMARY CARE CENTRE,18961633,167.22 
Department of Health,NHS Sheffield CCG,30/09/2017,C&M-GMS Prof Fees Prescribing,PRC DELEGATED CO-COMMISSIONING,CHARNOCK HEALTH PRIMARY CARE CENTRE,18961633,111.08 
Department of Health,NHS Sheffield CCG,30/09/2017,C&M-GMS QOF Aspiration,PRC DELEGATED CO-COMMISSIONING,CHARNOCK HEALTH PRIMARY CARE CENTRE,18961633,"4,669.55 "
Department of Health,NHS Sheffield CCG,30/09/2017,Hcare Srv Rec Fdtn Trust-Contract Baseline,ACUTE COMMISSIONING,CHESTERFIELD ROYAL HOSPITAL NHS FOUNDATION TRUST,18808103,"273,318.00 "
Department of Health,NHS Sheffield CCG,30/09/2017,Clinical&Medical-Clinical Other,PLANNED CARE,CHILDRENS TRUST (THE),18985695,"46,500.00 "
Department of Health,NHS Sheffield CCG,30/09/2017,Clinical&Medical-Independent Sector,ACUTE COMMISSIONING,CLAREMONT HOSPITAL,18808061,"78,290.00 "
Department of Health,NHS Sheffield CCG,30/09/2017,Clinical&Medical-Independent Sector,ACUTE COMMISSIONING,CLAREMONT HOSPITAL,19032043,"(27,240.00)"
Department of Health,NHS Sheffield CCG,30/09/2017,Voids and Subsidies,PRC DELEGATED CO-COMMISSIONING,COMMUNITY HEALTH PARTNERSHIPS LTD,18807889,"34,295.86 "
Department of Health,NHS Sheffield CCG,30/09/2017,Voids and Subsidies,RECHARGES NHS PROPERTY SERVICES LTD,COMMUNITY HEALTH PARTNERSHIPS LTD,18807889,"117,637.14 "
Department of Health,NHS Sheffield CCG,30/09/2017,Voids and Subsidies,PRC DELEGATED CO-COMMISSIONING,COMMUNITY HEALTH PARTNERSHIPS LTD,18807905,"34,295.86 "
Department of Health,NHS Sheffield CCG,30/09/2017,Voids and Subsidies,RECHARGES NHS PROPERTY SERVICES LTD,COMMUNITY HEALTH PARTNERSHIPS LTD,18807905,"117,637.14 "
Department of Health,NHS Sheffield CCG,30/09/2017,Voids and Subsidies,PRC DELEGATED CO-COMMISSIONING,COMMUNITY HEALTH PARTNERSHIPS LTD,18807914,"34,295.96 "
Department of Health,NHS Sheffield CCG,30/09/2017,Voids and Subsidies,RECHARGES NHS PROPERTY SERVICES LTD,COMMUNITY HEALTH PARTNERSHIPS LTD,18807914,"117,637.04 "
Department of Health,NHS Sheffield CCG,30/09/2017,Voids and Subsidies,PRC DELEGATED CO-COMMISSIONING,COMMUNITY HEALTH PARTNERSHIPS LTD,18807959,"24,453.28 "
Department of Health,NHS Sheffield CCG,30/09/2017,Voids and Subsidies,RECHARGES NHS PROPERTY SERVICES LTD,COMMUNITY HEALTH PARTNERSHIPS LTD,18807959,"103,350.58 "
Department of Health,NHS Sheffield CCG,30/09/2017,Voids and Subsidies,PRC DELEGATED CO-COMMISSIONING,COMMUNITY HEALTH PARTNERSHIPS LTD,19006325,"13,723.81 "
Department of Health,NHS Sheffield CCG,30/09/2017,Voids and Subsidies,RECHARGES NHS PROPERTY SERVICES LTD,COMMUNITY HEALTH PARTNERSHIPS LTD,19006325,"114,080.05 "
Department of Health,NHS Sheffield CCG,30/09/2017,Voids and Subsidies,PRC DELEGATED CO-COMMISSIONING,COMMUNITY HEALTH PARTNERSHIPS LTD,19006345,"13,723.81 "
Department of Health,NHS Sheffield CCG,30/09/2017,Voids and Subsidies,RECHARGES NHS PROPERTY SERVICES LTD,COMMUNITY HEALTH PARTNERSHIPS LTD,19006345,"114,080.05 "
Department of Health,NHS Sheffield CCG,30/09/2017,Cont Care-Funded Nursing Care Allow,FUNDED NURSING CARE,COUNTRY COURT CARE LTD,18849924,"31,231.50 "
Department of Health,NHS Sheffield CCG,30/09/2017,C&M-GMS Cost of Drugs -Prescribing,LOCAL ENHANCED SERVICES,CROOKES PRACTICE,18979786,"1,016.67 "
Department of Health,NHS Sheffield CCG,30/09/2017,C&M-GMS DES Extended Hours Access,PRC DELEGATED CO-COMMISSIONING,CROOKES PRACTICE,18979786,"3,688.38 "
Department of Health,NHS Sheffield CCG,30/09/2017,C&M-GMS DES TPP QRISK,PRC DELEGATED CO-COMMISSIONING,CROOKES PRACTICE,18979786,728.00 
Department of Health,NHS Sheffield CCG,30/09/2017,C&M-GMS Global Sum,PRC DELEGATED CO-COMMISSIONING,CROOKES PRACTICE,18979786,"46,674.80 "
Department of Health,NHS Sheffield CCG,30/09/2017,C&M-GMS MPIG Correction Factor,PRC DELEGATED CO-COMMISSIONING,CROOKES PRACTICE,18979786,"2,318.88 "
Department of Health,NHS Sheffield CCG,30/09/2017,C&M-GMS PCO Other,PRC DELEGATED CO-COMMISSIONING,CROOKES PRACTICE,18979786,452.60 
Department of Health,NHS Sheffield CCG,30/09/2017,C&M-GMS PCO Seniority,PRC DELEGATED CO-COMMISSIONING,CROOKES PRACTICE,18979786,"2,014.91 "
Department of Health,NHS Sheffield CCG,30/09/2017,C&M-GMS Prem Notional Rent,PRC DELEGATED CO-COMMISSIONING,CROOKES PRACTICE,18979786,"3,752.42 "
Department of Health,NHS Sheffield CCG,30/09/2017,C&M-GMS Prem Rates,PRC DELEGATED CO-COMMISSIONING,CROOKES PRACTICE,18979786,"1,444.00 "
Department of Health,NHS Sheffield CCG,30/09/2017,C&M-GMS Prem Water Rates,PRC DELEGATED CO-COMMISSIONING,CROOKES PRACTICE,18979786,160.00 
Department of Health,NHS Sheffield CCG,30/09/2017,C&M-GMS Prof Fees Prescribing,PRC DELEGATED CO-COMMISSIONING,CROOKES PRACTICE,18979786,148.10 
Department of Health,NHS Sheffield CCG,30/09/2017,C&M-GMS QOF Aspiration,PRC DELEGATED CO-COMMISSIONING,CROOKES PRACTICE,18979786,"4,702.76 "
Department of Health,NHS Sheffield CCG,30/09/2017,Voids and Subsidies,RECHARGES NHS PROPERTY SERVICES LTD,DARNALL WELL BEING,18968510,"127,162.12 "
Department of Health,NHS Sheffield CCG,30/09/2017,C&M-PMS Contract Value,PRC DELEGATED CO-COMMISSIONING,DEEPCAR MEDICAL CENTRE,18783766,"38,920.19 "
Department of Health,NHS Sheffield CCG,30/09/2017,C&M-PMS DES Extended Hours Access,PRC DELEGATED CO-COMMISSIONING,DEEPCAR MEDICAL CENTRE,18783766,"2,444.35 "
Department of Health,NHS Sheffield CCG,30/09/2017,C&M-PMS DES TPP QRISK,PRC DELEGATED CO-COMMISSIONING,DEEPCAR MEDICAL CENTRE,18783766,169.00 
Department of Health,NHS Sheffield CCG,30/09/2017,C&M-PMS Funding Differential Review,PRC DELEGATED CO-COMMISSIONING,DEEPCAR MEDICAL CENTRE,18783766,306.08 
Department of Health,NHS Sheffield CCG,30/09/2017,C&M-PMS PCO Seniority,PRC DELEGATED CO-COMMISSIONING,DEEPCAR MEDICAL CENTRE,18783766,"1,427.82 "
Department of Health,NHS Sheffield CCG,30/09/2017,C&M-PMS Prem Healthcentre Rent,PRC DELEGATED CO-COMMISSIONING,DEEPCAR MEDICAL CENTRE,18783766,"36,281.93 "
Department of Health,NHS Sheffield CCG,30/09/2017,C&M-PMS QOF Aspiration,PRC DELEGATED CO-COMMISSIONING,DEEPCAR MEDICAL CENTRE,18783766,"4,452.12 "
Department of Health,NHS Sheffield CCG,30/09/2017,C&M-GMS Cost of Drugs -Prescribing,LOCAL ENHANCED SERVICES,DEVONSHIRE GREEN MEDICAL CENTRE,18961643,"1,496.44 "
Department of Health,NHS Sheffield CCG,30/09/2017,C&M-GMS Global Sum,PRC DELEGATED CO-COMMISSIONING,DEVONSHIRE GREEN MEDICAL CENTRE,18961643,"44,085.33 "
Department of Health,NHS Sheffield CCG,30/09/2017,C&M-GMS MPIG Correction Factor,PRC DELEGATED CO-COMMISSIONING,DEVONSHIRE GREEN MEDICAL CENTRE,18961643,"4,846.80 "
Department of Health,NHS Sheffield CCG,30/09/2017,C&M-GMS PCO Seniority,PRC DELEGATED CO-COMMISSIONING,DEVONSHIRE GREEN MEDICAL CENTRE,18961643,"4,301.94 "
Department of Health,NHS Sheffield CCG,30/09/2017,C&M-GMS Prem Notional Rent,PRC DELEGATED CO-COMMISSIONING,DEVONSHIRE GREEN MEDICAL CENTRE,18961643,"5,987.50 "
Department of Health,NHS Sheffield CCG,30/09/2017,C&M-GMS Prof Fees Prescribing,PRC DELEGATED CO-COMMISSIONING,DEVONSHIRE GREEN MEDICAL CENTRE,18961643,217.52 
Department of Health,NHS Sheffield CCG,30/09/2017,C&M-GMS QOF Aspiration,PRC DELEGATED CO-COMMISSIONING,DEVONSHIRE GREEN MEDICAL CENTRE,18961643,"5,205.83 "
Department of Health,NHS Sheffield CCG,30/09/2017,Hcare Srv Rec Fdtn Trust-Contract Baseline,ACUTE COMMISSIONING,DONCASTER AND BASSETLAW HOSPITALS NHS FOUNDATION TRUST,18785732,"34,715.00 "
Department of Health,NHS Sheffield CCG,30/09/2017,C&M-PMS Contract Value,PRC DELEGATED CO-COMMISSIONING,DOVERCOURT SURGERY,18783767,"69,293.59 "
Department of Health,NHS Sheffield CCG,30/09/2017,C&M-PMS DES Extended Hours Access,PRC DELEGATED CO-COMMISSIONING,DOVERCOURT SURGERY,18783767,"3,876.95 "
Department of Health,NHS Sheffield CCG,30/09/2017,C&M-PMS DES TPP QRISK,PRC DELEGATED CO-COMMISSIONING,DOVERCOURT SURGERY,18783767,578.50 
Department of Health,NHS Sheffield CCG,30/09/2017,C&M-PMS Funding Differential Review,PRC DELEGATED CO-COMMISSIONING,DOVERCOURT SURGERY,18783767,"3,616.08 "
Department of Health,NHS Sheffield CCG,30/09/2017,C&M-PMS PCO Seniority,PRC DELEGATED CO-COMMISSIONING,DOVERCOURT SURGERY,18783767,"1,825.72 "
Department of Health,NHS Sheffield CCG,30/09/2017,C&M-PMS Prem Actual Rent,PRC DELEGATED CO-COMMISSIONING,DOVERCOURT SURGERY,18783767,"12,400.00 "
Department of Health,NHS Sheffield CCG,30/09/2017,C&M-PMS Prem Notional Rent,PRC DELEGATED CO-COMMISSIONING,DOVERCOURT SURGERY,18783767,"1,708.34 "
Department of Health,NHS Sheffield CCG,30/09/2017,C&M-PMS QOF Aspiration,PRC DELEGATED CO-COMMISSIONING,DOVERCOURT SURGERY,18783767,"7,505.03 "
Department of Health,NHS Sheffield CCG,30/09/2017,C&M-PMS Contract Value,PRC DELEGATED CO-COMMISSIONING,DR MEHROTRA & PARTNER,18783768,"27,723.58 "
Department of Health,NHS Sheffield CCG,30/09/2017,C&M-PMS DES Extended Hours Access,PRC DELEGATED CO-COMMISSIONING,DR MEHROTRA & PARTNER,18783768,"1,620.23 "
Department of Health,NHS Sheffield CCG,30/09/2017,C&M-PMS DES TPP QRISK,PRC DELEGATED CO-COMMISSIONING,DR MEHROTRA & PARTNER,18783768,208.00 
Department of Health,NHS Sheffield CCG,30/09/2017,C&M-PMS Funding Differential Review,PRC DELEGATED CO-COMMISSIONING,DR MEHROTRA & PARTNER,18783768,885.92 
Department of Health,NHS Sheffield CCG,30/09/2017,C&M-PMS PCO Other,PRC DELEGATED CO-COMMISSIONING,DR MEHROTRA & PARTNER,18783768,384.50 
Department of Health,NHS Sheffield CCG,30/09/2017,C&M-PMS PCO Seniority,PRC DELEGATED CO-COMMISSIONING,DR MEHROTRA & PARTNER,18783768,637.24 
Department of Health,NHS Sheffield CCG,30/09/2017,C&M-PMS Prem Notional Rent,PRC DELEGATED CO-COMMISSIONING,DR MEHROTRA & PARTNER,18783768,"5,157.33 "
Department of Health,NHS Sheffield CCG,30/09/2017,C&M-PMS Prem Rates,PRC DELEGATED CO-COMMISSIONING,DR MEHROTRA & PARTNER,18783768,"1,322.00 "
Department of Health,NHS Sheffield CCG,30/09/2017,C&M-PMS QOF Aspiration,PRC DELEGATED CO-COMMISSIONING,DR MEHROTRA & PARTNER,18783768,"3,389.93 "
Department of Health,NHS Sheffield CCG,30/09/2017,C&M-PMS Contract Value,PRC DELEGATED CO-COMMISSIONING,DR MILNER & PARTNERS,18783769,"71,385.71 "
Department of Health,NHS Sheffield CCG,30/09/2017,C&M-PMS DES Extended Hours Access,PRC DELEGATED CO-COMMISSIONING,DR MILNER & PARTNERS,18783769,"4,991.30 "
Department of Health,NHS Sheffield CCG,30/09/2017,C&M-PMS DES Learn Dsblty Hlth Chk,PRC DELEGATED CO-COMMISSIONING,DR MILNER & PARTNERS,18783769,420.00 
Department of Health,NHS Sheffield CCG,30/09/2017,C&M-PMS DES TPP QRISK,PRC DELEGATED CO-COMMISSIONING,DR MILNER & PARTNERS,18783769,786.50 
Department of Health,NHS Sheffield CCG,30/09/2017,C&M-PMS DES UNPLANNED ADMISSIONS,PRC DELEGATED CO-COMMISSIONING,DR MILNER & PARTNERS,18783769,"13,918.45 "
Department of Health,NHS Sheffield CCG,30/09/2017,C&M-PMS Funding Differential Review,PRC DELEGATED CO-COMMISSIONING,DR MILNER & PARTNERS,18783769,"4,581.42 "
Department of Health,NHS Sheffield CCG,30/09/2017,C&M-PMS PCO Locum Adop/Pat/Mat,PRC DELEGATED CO-COMMISSIONING,DR MILNER & PARTNERS,18783769,"8,878.44 "
Department of Health,NHS Sheffield CCG,30/09/2017,C&M-PMS PCO Seniority,PRC DELEGATED CO-COMMISSIONING,DR MILNER & PARTNERS,18783769,"1,727.76 "
Department of Health,NHS Sheffield CCG,30/09/2017,C&M-PMS Prem Actual Rent,PRC DELEGATED CO-COMMISSIONING,DR MILNER & PARTNERS,18783769,"11,382.00 "
Department of Health,NHS Sheffield CCG,30/09/2017,C&M-PMS Prem Notional Rent,PRC DELEGATED CO-COMMISSIONING,DR MILNER & PARTNERS,18783769,"4,462.41 "
Department of Health,NHS Sheffield CCG,30/09/2017,C&M-PMS Prem Rates,PRC DELEGATED CO-COMMISSIONING,DR MILNER & PARTNERS,18783769,"1,921.00 "
Department of Health,NHS Sheffield CCG,30/09/2017,C&M-PMS QOF Aspiration,PRC DELEGATED CO-COMMISSIONING,DR MILNER & PARTNERS,18783769,"7,385.62 "
Department of Health,NHS Sheffield CCG,30/09/2017,C&M-GMS Cost of Drugs -Prescribing,LOCAL ENHANCED SERVICES,DUKE MEDICAL CENTRE,18979790,926.96 
Department of Health,NHS Sheffield CCG,30/09/2017,C&M-GMS DES Extended Hours Access,PRC DELEGATED CO-COMMISSIONING,DUKE MEDICAL CENTRE,18979790,"3,191.05 "
Department of Health,NHS Sheffield CCG,30/09/2017,C&M-GMS DES TPP QRISK,PRC DELEGATED CO-COMMISSIONING,DUKE MEDICAL CENTRE,18979790,19.50 
Department of Health,NHS Sheffield CCG,30/09/2017,C&M-GMS Global Sum,PRC DELEGATED CO-COMMISSIONING,DUKE MEDICAL CENTRE,18979790,"53,346.41 "
Department of Health,NHS Sheffield CCG,30/09/2017,C&M-GMS MPIG Correction Factor,PRC DELEGATED CO-COMMISSIONING,DUKE MEDICAL CENTRE,18979790,918.76 
Department of Health,NHS Sheffield CCG,30/09/2017,C&M-GMS PCO Seniority,PRC DELEGATED CO-COMMISSIONING,DUKE MEDICAL CENTRE,18979790,"1,682.88 "
Department of Health,NHS Sheffield CCG,30/09/2017,C&M-GMS Prem Notional Rent,PRC DELEGATED CO-COMMISSIONING,DUKE MEDICAL CENTRE,18979790,"5,721.67 "
Department of Health,NHS Sheffield CCG,30/09/2017,C&M-GMS Prof Fees Prescribing,PRC DELEGATED CO-COMMISSIONING,DUKE MEDICAL CENTRE,18979790,261.48 
Department of Health,NHS Sheffield CCG,30/09/2017,C&M-GMS QOF Aspiration,PRC DELEGATED CO-COMMISSIONING,DUKE MEDICAL CENTRE,18979790,"5,346.37 "
Department of Health,NHS Sheffield CCG,30/09/2017,C&M-PMS Contract Value,PRC DELEGATED CO-COMMISSIONING,DUNNINC ROAD SURGERY,18757049,"23,278.26 "
Department of Health,NHS Sheffield CCG,30/09/2017,C&M-PMS DES Extended Hours Access,PRC DELEGATED CO-COMMISSIONING,DUNNINC ROAD SURGERY,18757049,"1,437.35 "
Department of Health,NHS Sheffield CCG,30/09/2017,C&M-PMS Funding Differential Review,PRC DELEGATED CO-COMMISSIONING,DUNNINC ROAD SURGERY,18757049,"1,218.67 "
Department of Health,NHS Sheffield CCG,30/09/2017,C&M-PMS PCO Seniority,PRC DELEGATED CO-COMMISSIONING,DUNNINC ROAD SURGERY,18757049,"2,115.59 "
Department of Health,NHS Sheffield CCG,30/09/2017,C&M-PMS Prem Actual Rent,PRC DELEGATED CO-COMMISSIONING,DUNNINC ROAD SURGERY,18757049,54.38 
Department of Health,NHS Sheffield CCG,30/09/2017,C&M-PMS Prem Notional Rent,PRC DELEGATED CO-COMMISSIONING,DUNNINC ROAD SURGERY,18757049,"1,664.59 "
Department of Health,NHS Sheffield CCG,30/09/2017,C&M-PMS QOF Aspiration,PRC DELEGATED CO-COMMISSIONING,DUNNINC ROAD SURGERY,18757049,"2,548.20 "
Department of Health,NHS Sheffield CCG,30/09/2017,C&M-PMS Contract Value,PRC DELEGATED CO-COMMISSIONING,DYKES HALL MEDICAL CENTRE,18757054,"70,096.76 "
Department of Health,NHS Sheffield CCG,30/09/2017,C&M-PMS DES Extended Hours Access,PRC DELEGATED CO-COMMISSIONING,DYKES HALL MEDICAL CENTRE,18757054,"4,609.40 "
Department of Health,NHS Sheffield CCG,30/09/2017,C&M-PMS Funding Differential Review,PRC DELEGATED CO-COMMISSIONING,DYKES HALL MEDICAL CENTRE,18757054,199.75 
Department of Health,NHS Sheffield CCG,30/09/2017,C&M-PMS PCO Seniority,PRC DELEGATED CO-COMMISSIONING,DYKES HALL MEDICAL CENTRE,18757054,"2,715.71 "
Department of Health,NHS Sheffield CCG,30/09/2017,C&M-PMS Prem Notional Rent,PRC DELEGATED CO-COMMISSIONING,DYKES HALL MEDICAL CENTRE,18757054,"5,300.83 "
Department of Health,NHS Sheffield CCG,30/09/2017,C&M-PMS QOF Aspiration,PRC DELEGATED CO-COMMISSIONING,DYKES HALL MEDICAL CENTRE,18757054,"8,863.43 "
Department of Health,NHS Sheffield CCG,30/09/2017,C&M-PMS Contract Value,PRC DELEGATED CO-COMMISSIONING,EAST BANK MEDICAL CENTRE,18757059,"44,692.31 "
Department of Health,NHS Sheffield CCG,30/09/2017,C&M-PMS DES Extended Hours Access,PRC DELEGATED CO-COMMISSIONING,EAST BANK MEDICAL CENTRE,18757059,"2,649.08 "
Department of Health,NHS Sheffield CCG,30/09/2017,C&M-PMS Funding Differential Review,PRC DELEGATED CO-COMMISSIONING,EAST BANK MEDICAL CENTRE,18757059,"1,588.17 "
Department of Health,NHS Sheffield CCG,30/09/2017,C&M-PMS Out of Hours Opt Outs,PRC DELEGATED CO-COMMISSIONING,EAST BANK MEDICAL CENTRE,18757059,75.77 
Department of Health,NHS Sheffield CCG,30/09/2017,C&M-PMS PCO Seniority,PRC DELEGATED CO-COMMISSIONING,EAST BANK MEDICAL CENTRE,18757059,"1,359.96 "
Department of Health,NHS Sheffield CCG,30/09/2017,C&M-PMS Prem Notional Rent,PRC DELEGATED CO-COMMISSIONING,EAST BANK MEDICAL CENTRE,18757059,"10,466.67 "
Department of Health,NHS Sheffield CCG,30/09/2017,C&M-PMS Prem Rates,PRC DELEGATED CO-COMMISSIONING,EAST BANK MEDICAL CENTRE,18757059,"4,981.00 "
Department of Health,NHS Sheffield CCG,30/09/2017,C&M-PMS QOF Aspiration,PRC DELEGATED CO-COMMISSIONING,EAST BANK MEDICAL CENTRE,18757059,"5,086.87 "
Department of Health,NHS Sheffield CCG,30/09/2017,C&M-GMS Cost of Drugs -Prescribing,LOCAL ENHANCED SERVICES,ECCLESFIELD GROUP PRACTICE,18979788,"1,475.15 "
Department of Health,NHS Sheffield CCG,30/09/2017,C&M-GMS DES Extended Hours Access,PRC DELEGATED CO-COMMISSIONING,ECCLESFIELD GROUP PRACTICE,18979788,"3,814.73 "
Department of Health,NHS Sheffield CCG,30/09/2017,C&M-GMS DES Learn Dsblty Hlth Chk,PRC DELEGATED CO-COMMISSIONING,ECCLESFIELD GROUP PRACTICE,18979788,980.00 
Department of Health,NHS Sheffield CCG,30/09/2017,C&M-GMS DES TPP QRISK,PRC DELEGATED CO-COMMISSIONING,ECCLESFIELD GROUP PRACTICE,18979788,"1,573.00 "
Department of Health,NHS Sheffield CCG,30/09/2017,C&M-GMS Global Sum,PRC DELEGATED CO-COMMISSIONING,ECCLESFIELD GROUP PRACTICE,18979788,"62,770.47 "
Department of Health,NHS Sheffield CCG,30/09/2017,C&M-GMS PCO Locum Adop/Pat/Mat,PRC DELEGATED CO-COMMISSIONING,ECCLESFIELD GROUP PRACTICE,18979788,"20,810.16 "
Department of Health,NHS Sheffield CCG,30/09/2017,C&M-GMS PCO Other,PRC DELEGATED CO-COMMISSIONING,ECCLESFIELD GROUP PRACTICE,18979788,452.60 
Department of Health,NHS Sheffield CCG,30/09/2017,C&M-GMS PCO Seniority,PRC DELEGATED CO-COMMISSIONING,ECCLESFIELD GROUP PRACTICE,18979788,"3,610.83 "
Department of Health,NHS Sheffield CCG,30/09/2017,C&M-GMS Prem Notional Rent,PRC DELEGATED CO-COMMISSIONING,ECCLESFIELD GROUP PRACTICE,18979788,"6,805.42 "
Department of Health,NHS Sheffield CCG,30/09/2017,C&M-GMS Prem Rates,PRC DELEGATED CO-COMMISSIONING,ECCLESFIELD GROUP PRACTICE,18979788,"2,055.00 "
Department of Health,NHS Sheffield CCG,30/09/2017,C&M-GMS Prof Fees Prescribing,PRC DELEGATED CO-COMMISSIONING,ECCLESFIELD GROUP PRACTICE,18979788,231.41 
Department of Health,NHS Sheffield CCG,30/09/2017,C&M-GMS QOF Aspiration,PRC DELEGATED CO-COMMISSIONING,ECCLESFIELD GROUP PRACTICE,18979788,"10,399.72 "
Department of Health,NHS Sheffield CCG,30/09/2017,C&M-GMS Cost of Drugs -Prescribing,LOCAL ENHANCED SERVICES,ELM LANE SURGERY,18979789,"1,409.28 "
Department of Health,NHS Sheffield CCG,30/09/2017,C&M-GMS DES Learn Dsblty Hlth Chk,PRC DELEGATED CO-COMMISSIONING,ELM LANE SURGERY,18979789,280.00 
Department of Health,NHS Sheffield CCG,30/09/2017,C&M-GMS DES TPP QRISK,PRC DELEGATED CO-COMMISSIONING,ELM LANE SURGERY,18979789,260.00 
Department of Health,NHS Sheffield CCG,30/09/2017,C&M-GMS Global Sum,PRC DELEGATED CO-COMMISSIONING,ELM LANE SURGERY,18979789,"37,805.40 "
Department of Health,NHS Sheffield CCG,30/09/2017,C&M-GMS MPIG Correction Factor,PRC DELEGATED CO-COMMISSIONING,ELM LANE SURGERY,18979789,"1,257.79 "
Department of Health,NHS Sheffield CCG,30/09/2017,C&M-GMS PCO Seniority,PRC DELEGATED CO-COMMISSIONING,ELM LANE SURGERY,18979789,"1,437.18 "
Department of Health,NHS Sheffield CCG,30/09/2017,C&M-GMS Prem Notional Rent,PRC DELEGATED CO-COMMISSIONING,ELM LANE SURGERY,18979789,"5,168.50 "
Department of Health,NHS Sheffield CCG,30/09/2017,C&M-GMS Prem Rates,PRC DELEGATED CO-COMMISSIONING,ELM LANE SURGERY,18979789,"1,268.00 "
Department of Health,NHS Sheffield CCG,30/09/2017,C&M-GMS Prem Water Rates,PRC DELEGATED CO-COMMISSIONING,ELM LANE SURGERY,18979789,632.56 
Department of Health,NHS Sheffield CCG,30/09/2017,C&M-GMS Prof Fees Prescribing,PRC DELEGATED CO-COMMISSIONING,ELM LANE SURGERY,18979789,148.09 
Department of Health,NHS Sheffield CCG,30/09/2017,C&M-GMS QOF Aspiration,PRC DELEGATED CO-COMMISSIONING,ELM LANE SURGERY,18979789,"4,880.72 "
Department of Health,NHS Sheffield CCG,30/09/2017,Cont Care-Physical Disab (<65),CHC ADULT FULLY FUNDED,FAIRWINDS HEALTH CARE LTD,18808124,"49,450.03 "
Department of Health,NHS Sheffield CCG,30/09/2017,C&M-PMS Contract Value,PRC DELEGATED CO-COMMISSIONING,FALKLAND HOUSE,18783770,"26,517.98 "
Department of Health,NHS Sheffield CCG,30/09/2017,C&M-PMS DES Extended Hours Access,PRC DELEGATED CO-COMMISSIONING,FALKLAND HOUSE,18783770,"1,903.80 "
Department of Health,NHS Sheffield CCG,30/09/2017,C&M-PMS DES TPP QRISK,PRC DELEGATED CO-COMMISSIONING,FALKLAND HOUSE,18783770,338.00 
Department of Health,NHS Sheffield CCG,30/09/2017,C&M-PMS Funding Differential Review,PRC DELEGATED CO-COMMISSIONING,FALKLAND HOUSE,18783770,"1,255.92 "
Department of Health,NHS Sheffield CCG,30/09/2017,C&M-PMS Out of Hours Opt Outs,PRC DELEGATED CO-COMMISSIONING,FALKLAND HOUSE,18783770,100.84 
Department of Health,NHS Sheffield CCG,30/09/2017,C&M-PMS PCO Other,PRC DELEGATED CO-COMMISSIONING,FALKLAND HOUSE,18783770,384.50 
Department of Health,NHS Sheffield CCG,30/09/2017,C&M-PMS PCO Seniority,PRC DELEGATED CO-COMMISSIONING,FALKLAND HOUSE,18783770,"1,112.94 "
Department of Health,NHS Sheffield CCG,30/09/2017,C&M-PMS Prem Notional Rent,PRC DELEGATED CO-COMMISSIONING,FALKLAND HOUSE,18783770,"1,802.08 "
Department of Health,NHS Sheffield CCG,30/09/2017,C&M-PMS Prem Rates,PRC DELEGATED CO-COMMISSIONING,FALKLAND HOUSE,18783770,713.00 
Department of Health,NHS Sheffield CCG,30/09/2017,C&M-PMS QOF Aspiration,PRC DELEGATED CO-COMMISSIONING,FALKLAND HOUSE,18783770,"3,036.47 "
Department of Health,NHS Sheffield CCG,30/09/2017,C&M-GMS Cost of Drugs -Prescribing,LOCAL ENHANCED SERVICES,FAR LANE MEDICAL CENTRE,18961654,213.63 
Department of Health,NHS Sheffield CCG,30/09/2017,C&M-GMS Global Sum,PRC DELEGATED CO-COMMISSIONING,FAR LANE MEDICAL CENTRE,18961654,"53,465.05 "
Department of Health,NHS Sheffield CCG,30/09/2017,C&M-GMS PCO Other,PRC DELEGATED CO-COMMISSIONING,FAR LANE MEDICAL CENTRE,18961654,452.60 
Department of Health,NHS Sheffield CCG,30/09/2017,C&M-GMS PCO Seniority,PRC DELEGATED CO-COMMISSIONING,FAR LANE MEDICAL CENTRE,18961654,"4,954.22 "
Department of Health,NHS Sheffield CCG,30/09/2017,C&M-GMS Prem Notional Rent,PRC DELEGATED CO-COMMISSIONING,FAR LANE MEDICAL CENTRE,18961654,"3,462.50 "
Department of Health,NHS Sheffield CCG,30/09/2017,C&M-GMS Prem Rates,PRC DELEGATED CO-COMMISSIONING,FAR LANE MEDICAL CENTRE,18961654,"1,053.00 "
Department of Health,NHS Sheffield CCG,30/09/2017,C&M-GMS Prof Fees Prescribing,PRC DELEGATED CO-COMMISSIONING,FAR LANE MEDICAL CENTRE,18961654,113.39 
Department of Health,NHS Sheffield CCG,30/09/2017,C&M-GMS QOF Aspiration,PRC DELEGATED CO-COMMISSIONING,FAR LANE MEDICAL CENTRE,18961654,"6,224.50 "
Department of Health,NHS Sheffield CCG,30/09/2017,C&M-PMS Contract Value,PRC DELEGATED CO-COMMISSIONING,FIRTH PARK SURGERY,18757064,"70,389.53 "
Department of Health,NHS Sheffield CCG,30/09/2017,C&M-PMS DES Extended Hours Access,PRC DELEGATED CO-COMMISSIONING,FIRTH PARK SURGERY,18757064,"4,628.40 "
Department of Health,NHS Sheffield CCG,30/09/2017,C&M-PMS Out of Hours Opt Outs,PRC DELEGATED CO-COMMISSIONING,FIRTH PARK SURGERY,18757064,3.01 
Department of Health,NHS Sheffield CCG,30/09/2017,C&M-PMS PCO Seniority,PRC DELEGATED CO-COMMISSIONING,FIRTH PARK SURGERY,18757064,"2,796.32 "
Department of Health,NHS Sheffield CCG,30/09/2017,C&M-PMS Prem Notional Rent,PRC DELEGATED CO-COMMISSIONING,FIRTH PARK SURGERY,18757064,"4,500.00 "
Department of Health,NHS Sheffield CCG,30/09/2017,C&M-PMS Prem Rates,PRC DELEGATED CO-COMMISSIONING,FIRTH PARK SURGERY,18757064,"1,291.00 "
Department of Health,NHS Sheffield CCG,30/09/2017,C&M-PMS QOF Aspiration,PRC DELEGATED CO-COMMISSIONING,FIRTH PARK SURGERY,18757064,"8,194.20 "
Department of Health,NHS Sheffield CCG,30/09/2017,C&M-GMS Cost of Drugs -Prescribing,LOCAL ENHANCED SERVICES,FLOWERS HEALTH CENTRE,18963758,"1,202.05 "
Department of Health,NHS Sheffield CCG,30/09/2017,C&M-GMS Global Sum,PRC DELEGATED CO-COMMISSIONING,FLOWERS HEALTH CENTRE,18963758,"33,150.39 "
Department of Health,NHS Sheffield CCG,30/09/2017,C&M-GMS MPIG Correction Factor,PRC DELEGATED CO-COMMISSIONING,FLOWERS HEALTH CENTRE,18963758,"2,214.46 "
Department of Health,NHS Sheffield CCG,30/09/2017,C&M-GMS PCO Seniority,PRC DELEGATED CO-COMMISSIONING,FLOWERS HEALTH CENTRE,18963758,"1,463.82 "
Department of Health,NHS Sheffield CCG,30/09/2017,C&M-GMS Prem Healthcentre Rent,PRC DELEGATED CO-COMMISSIONING,FLOWERS HEALTH CENTRE,18963758,"36,097.05 "
Department of Health,NHS Sheffield CCG,30/09/2017,C&M-GMS Prof Fees Prescribing,PRC DELEGATED CO-COMMISSIONING,FLOWERS HEALTH CENTRE,18963758,196.69 
Department of Health,NHS Sheffield CCG,30/09/2017,C&M-GMS QOF Aspiration,PRC DELEGATED CO-COMMISSIONING,FLOWERS HEALTH CENTRE,18963758,"4,334.56 "
Department of Health,NHS Sheffield CCG,30/09/2017,C&M-PMS Contract Value,PRC DELEGATED CO-COMMISSIONING,FOXHILL MEDICAL CENTRE SHEFFIELD,18783791,"50,266.22 "
Department of Health,NHS Sheffield CCG,30/09/2017,C&M-PMS DES Extended Hours Access,PRC DELEGATED CO-COMMISSIONING,FOXHILL MEDICAL CENTRE SHEFFIELD,18783791,"2,956.88 "
Department of Health,NHS Sheffield CCG,30/09/2017,C&M-PMS DES Learn Dsblty Hlth Chk,PRC DELEGATED CO-COMMISSIONING,FOXHILL MEDICAL CENTRE SHEFFIELD,18783791,"1,120.00 "
Department of Health,NHS Sheffield CCG,30/09/2017,C&M-PMS DES TPP QRISK,PRC DELEGATED CO-COMMISSIONING,FOXHILL MEDICAL CENTRE SHEFFIELD,18783791,721.50 
Department of Health,NHS Sheffield CCG,30/09/2017,C&M-PMS Funding Differential Review,PRC DELEGATED CO-COMMISSIONING,FOXHILL MEDICAL CENTRE SHEFFIELD,18783791,"1,451.25 "
Department of Health,NHS Sheffield CCG,30/09/2017,C&M-PMS Out of Hours Opt Outs,PRC DELEGATED CO-COMMISSIONING,FOXHILL MEDICAL CENTRE SHEFFIELD,18783791,36.90 
Department of Health,NHS Sheffield CCG,30/09/2017,C&M-PMS PCO Other,PRC DELEGATED CO-COMMISSIONING,FOXHILL MEDICAL CENTRE SHEFFIELD,18783791,452.60 
Department of Health,NHS Sheffield CCG,30/09/2017,C&M-PMS PCO Seniority,PRC DELEGATED CO-COMMISSIONING,FOXHILL MEDICAL CENTRE SHEFFIELD,18783791,"3,414.90 "
Department of Health,NHS Sheffield CCG,30/09/2017,C&M-PMS Prem Healthcentre Rent,PRC DELEGATED CO-COMMISSIONING,FOXHILL MEDICAL CENTRE SHEFFIELD,18783791,"47,157.96 "
Department of Health,NHS Sheffield CCG,30/09/2017,C&M-PMS QOF Aspiration,PRC DELEGATED CO-COMMISSIONING,FOXHILL MEDICAL CENTRE SHEFFIELD,18783791,"5,736.75 "
Department of Health,NHS Sheffield CCG,30/09/2017,C&M-PMS Contract Value,PRC DELEGATED CO-COMMISSIONING,GLEADLESS MEDICAL CENTRE,18783771,"67,346.75 "
Department of Health,NHS Sheffield CCG,30/09/2017,C&M-PMS DES Learn Dsblty Hlth Chk,PRC DELEGATED CO-COMMISSIONING,GLEADLESS MEDICAL CENTRE,18783771,280.00 
Department of Health,NHS Sheffield CCG,30/09/2017,C&M-PMS Funding Differential Review,PRC DELEGATED CO-COMMISSIONING,GLEADLESS MEDICAL CENTRE,18783771,"1,261.42 "
Department of Health,NHS Sheffield CCG,30/09/2017,C&M-PMS Out of Hours Opt Outs,PRC DELEGATED CO-COMMISSIONING,GLEADLESS MEDICAL CENTRE,18783771,18.60 
Department of Health,NHS Sheffield CCG,30/09/2017,C&M-PMS PCO Other,PRC DELEGATED CO-COMMISSIONING,GLEADLESS MEDICAL CENTRE,18783771,452.60 
Department of Health,NHS Sheffield CCG,30/09/2017,C&M-PMS PCO Seniority,PRC DELEGATED CO-COMMISSIONING,GLEADLESS MEDICAL CENTRE,18783771,"3,732.03 "
Department of Health,NHS Sheffield CCG,30/09/2017,C&M-PMS Prem Notional Rent,PRC DELEGATED CO-COMMISSIONING,GLEADLESS MEDICAL CENTRE,18783771,"6,750.00 "
Department of Health,NHS Sheffield CCG,30/09/2017,C&M-PMS Prem Rates,PRC DELEGATED CO-COMMISSIONING,GLEADLESS MEDICAL CENTRE,18783771,"1,250.00 "
Department of Health,NHS Sheffield CCG,30/09/2017,C&M-PMS QOF Aspiration,PRC DELEGATED CO-COMMISSIONING,GLEADLESS MEDICAL CENTRE,18783771,"8,204.51 "
Department of Health,NHS Sheffield CCG,30/09/2017,C&M-GMS Cost of Drugs -Prescribing,LOCAL ENHANCED SERVICES,GRENOSIDE SURGERY,18961660,"1,476.68 "
Department of Health,NHS Sheffield CCG,30/09/2017,C&M-GMS DES Extended Hours Access,PRC DELEGATED CO-COMMISSIONING,GRENOSIDE SURGERY,18961660,"3,469.88 "
Department of Health,NHS Sheffield CCG,30/09/2017,C&M-GMS Global Sum,PRC DELEGATED CO-COMMISSIONING,GRENOSIDE SURGERY,18961660,"53,914.45 "
Department of Health,NHS Sheffield CCG,30/09/2017,C&M-GMS PCO Other,PRC DELEGATED CO-COMMISSIONING,GRENOSIDE SURGERY,18961660,452.60 
Department of Health,NHS Sheffield CCG,30/09/2017,C&M-GMS PCO Seniority,PRC DELEGATED CO-COMMISSIONING,GRENOSIDE SURGERY,18961660,"1,902.98 "
Department of Health,NHS Sheffield CCG,30/09/2017,C&M-GMS Prem Notional Rent,PRC DELEGATED CO-COMMISSIONING,GRENOSIDE SURGERY,18961660,"8,150.17 "
Department of Health,NHS Sheffield CCG,30/09/2017,C&M-GMS Prem Rates,PRC DELEGATED CO-COMMISSIONING,GRENOSIDE SURGERY,18961660,"1,643.00 "
Department of Health,NHS Sheffield CCG,30/09/2017,C&M-GMS Prof Fees Prescribing,PRC DELEGATED CO-COMMISSIONING,GRENOSIDE SURGERY,18961660,115.71 
Department of Health,NHS Sheffield CCG,30/09/2017,C&M-GMS QOF Aspiration,PRC DELEGATED CO-COMMISSIONING,GRENOSIDE SURGERY,18961660,"6,197.70 "
Department of Health,NHS Sheffield CCG,30/09/2017,C&M-GMS Cost of Drugs -Prescribing,LOCAL ENHANCED SERVICES,GREYSTONES MEDICAL CENTRE,18979792,471.23 
Department of Health,NHS Sheffield CCG,30/09/2017,C&M-GMS DES Extended Hours Access,PRC DELEGATED CO-COMMISSIONING,GREYSTONES MEDICAL CENTRE,18979792,"1,742.30 "
Department of Health,NHS Sheffield CCG,30/09/2017,C&M-GMS DES TPP QRISK,PRC DELEGATED CO-COMMISSIONING,GREYSTONES MEDICAL CENTRE,18979792,91.00 
Department of Health,NHS Sheffield CCG,30/09/2017,C&M-GMS Global Sum,PRC DELEGATED CO-COMMISSIONING,GREYSTONES MEDICAL CENTRE,18979792,"18,375.45 "
Department of Health,NHS Sheffield CCG,30/09/2017,C&M-GMS MPIG Correction Factor,PRC DELEGATED CO-COMMISSIONING,GREYSTONES MEDICAL CENTRE,18979792,"1,656.69 "
Department of Health,NHS Sheffield CCG,30/09/2017,C&M-GMS PCO Locum Adop/Pat/Mat,PRC DELEGATED CO-COMMISSIONING,GREYSTONES MEDICAL CENTRE,18979792,"12,581.49 "
Department of Health,NHS Sheffield CCG,30/09/2017,C&M-GMS PCO Other,PRC DELEGATED CO-COMMISSIONING,GREYSTONES MEDICAL CENTRE,18979792,384.50 
Department of Health,NHS Sheffield CCG,30/09/2017,C&M-GMS PCO Seniority,PRC DELEGATED CO-COMMISSIONING,GREYSTONES MEDICAL CENTRE,18979792,579.37 
Department of Health,NHS Sheffield CCG,30/09/2017,C&M-GMS Prem Notional Rent,PRC DELEGATED CO-COMMISSIONING,GREYSTONES MEDICAL CENTRE,18979792,"2,729.17 "
Department of Health,NHS Sheffield CCG,30/09/2017,C&M-GMS Prem Rates,PRC DELEGATED CO-COMMISSIONING,GREYSTONES MEDICAL CENTRE,18979792,583.00 
Department of Health,NHS Sheffield CCG,30/09/2017,C&M-GMS Prof Fees Prescribing,PRC DELEGATED CO-COMMISSIONING,GREYSTONES MEDICAL CENTRE,18979792,43.97 
Department of Health,NHS Sheffield CCG,30/09/2017,C&M-GMS QOF Aspiration,PRC DELEGATED CO-COMMISSIONING,GREYSTONES MEDICAL CENTRE,18979792,"2,071.10 "
Department of Health,NHS Sheffield CCG,30/09/2017,C&M-PMS Contract Value,PRC DELEGATED CO-COMMISSIONING,HACKENTHORPE MEDICAL CENTRE,18757078,"45,958.86 "
Department of Health,NHS Sheffield CCG,30/09/2017,C&M-PMS DES Extended Hours Access,PRC DELEGATED CO-COMMISSIONING,HACKENTHORPE MEDICAL CENTRE,18757078,"3,154.95 "
Department of Health,NHS Sheffield CCG,30/09/2017,C&M-PMS Funding Differential Review,PRC DELEGATED CO-COMMISSIONING,HACKENTHORPE MEDICAL CENTRE,18757078,"2,105.58 "
Department of Health,NHS Sheffield CCG,30/09/2017,C&M-PMS Out of Hours Opt Outs,PRC DELEGATED CO-COMMISSIONING,HACKENTHORPE MEDICAL CENTRE,18757078,5.71 
Department of Health,NHS Sheffield CCG,30/09/2017,C&M-PMS PCO Locum Adop/Pat/Mat,PRC DELEGATED CO-COMMISSIONING,HACKENTHORPE MEDICAL CENTRE,18757078,"3,404.09 "
Department of Health,NHS Sheffield CCG,30/09/2017,C&M-PMS PCO Seniority,PRC DELEGATED CO-COMMISSIONING,HACKENTHORPE MEDICAL CENTRE,18757078,"2,573.72 "
Department of Health,NHS Sheffield CCG,30/09/2017,C&M-PMS Prem Notional Rent,PRC DELEGATED CO-COMMISSIONING,HACKENTHORPE MEDICAL CENTRE,18757078,"4,981.25 "
Department of Health,NHS Sheffield CCG,30/09/2017,C&M-PMS QOF Aspiration,PRC DELEGATED CO-COMMISSIONING,HACKENTHORPE MEDICAL CENTRE,18757078,"6,731.39 "
Department of Health,NHS Sheffield CCG,30/09/2017,C&M-GMS Cost of Drugs -Prescribing,LOCAL ENHANCED SERVICES,HANDSWORTH MEDICAL PRACTICE SHEFFIELD,18979791,"1,030.93 "
Department of Health,NHS Sheffield CCG,30/09/2017,C&M-GMS DES Extended Hours Access,PRC DELEGATED CO-COMMISSIONING,HANDSWORTH MEDICAL PRACTICE SHEFFIELD,18979791,"4,690.63 "
Department of Health,NHS Sheffield CCG,30/09/2017,C&M-GMS DES TPP QRISK,PRC DELEGATED CO-COMMISSIONING,HANDSWORTH MEDICAL PRACTICE SHEFFIELD,18979791,910.00 
Department of Health,NHS Sheffield CCG,30/09/2017,C&M-GMS Global Sum,PRC DELEGATED CO-COMMISSIONING,HANDSWORTH MEDICAL PRACTICE SHEFFIELD,18979791,"71,741.75 "
Department of Health,NHS Sheffield CCG,30/09/2017,C&M-GMS PCO Seniority,PRC DELEGATED CO-COMMISSIONING,HANDSWORTH MEDICAL PRACTICE SHEFFIELD,18979791,"1,913.37 "
Department of Health,NHS Sheffield CCG,30/09/2017,C&M-GMS Prem Notional Rent,PRC DELEGATED CO-COMMISSIONING,HANDSWORTH MEDICAL PRACTICE SHEFFIELD,18979791,"3,321.66 "
Department of Health,NHS Sheffield CCG,30/09/2017,C&M-GMS Prem Rates,PRC DELEGATED CO-COMMISSIONING,HANDSWORTH MEDICAL PRACTICE SHEFFIELD,18979791,"1,214.00 "
Department of Health,NHS Sheffield CCG,30/09/2017,C&M-GMS Prof Fees Prescribing,PRC DELEGATED CO-COMMISSIONING,HANDSWORTH MEDICAL PRACTICE SHEFFIELD,18979791,231.41 
Department of Health,NHS Sheffield CCG,30/09/2017,C&M-GMS QOF Aspiration,PRC DELEGATED CO-COMMISSIONING,HANDSWORTH MEDICAL PRACTICE SHEFFIELD,18979791,"8,011.43 "
Department of Health,NHS Sheffield CCG,30/09/2017,Cont Care-Physical Disab (<65),CHC ADULT FULLY FUNDED,HC ONE LTD,18847628,"26,327.10 "
Department of Health,NHS Sheffield CCG,30/09/2017,C&M-GMS Cost of Drugs -Prescribing,LOCAL ENHANCED SERVICES,HEALTH CARE SURGERY,18979794,741.10 
Department of Health,NHS Sheffield CCG,30/09/2017,C&M-GMS DES Extended Hours Access,PRC DELEGATED CO-COMMISSIONING,HEALTH CARE SURGERY,18979794,"2,360.75 "
Department of Health,NHS Sheffield CCG,30/09/2017,C&M-GMS DES TPP QRISK,PRC DELEGATED CO-COMMISSIONING,HEALTH CARE SURGERY,18979794,45.50 
Department of Health,NHS Sheffield CCG,30/09/2017,C&M-GMS Global Sum,PRC DELEGATED CO-COMMISSIONING,HEALTH CARE SURGERY,18979794,"36,037.78 "
Department of Health,NHS Sheffield CCG,30/09/2017,C&M-GMS MPIG Correction Factor,PRC DELEGATED CO-COMMISSIONING,HEALTH CARE SURGERY,18979794,"1,170.03 "
Department of Health,NHS Sheffield CCG,30/09/2017,C&M-GMS PCO Locum Adop/Pat/Mat,PRC DELEGATED CO-COMMISSIONING,HEALTH CARE SURGERY,18979794,"4,808.00 "
Department of Health,NHS Sheffield CCG,30/09/2017,C&M-GMS PCO Other,PRC DELEGATED CO-COMMISSIONING,HEALTH CARE SURGERY,18979794,384.50 
Department of Health,NHS Sheffield CCG,30/09/2017,C&M-GMS PCO Seniority,PRC DELEGATED CO-COMMISSIONING,HEALTH CARE SURGERY,18979794,579.37 
Department of Health,NHS Sheffield CCG,30/09/2017,C&M-GMS Prem Notional Rent,PRC DELEGATED CO-COMMISSIONING,HEALTH CARE SURGERY,18979794,"3,862.50 "
Department of Health,NHS Sheffield CCG,30/09/2017,C&M-GMS Prem Rates,PRC DELEGATED CO-COMMISSIONING,HEALTH CARE SURGERY,18979794,518.00 
Department of Health,NHS Sheffield CCG,30/09/2017,C&M-GMS Prof Fees Prescribing,PRC DELEGATED CO-COMMISSIONING,HEALTH CARE SURGERY,18979794,118.02 
Department of Health,NHS Sheffield CCG,30/09/2017,C&M-GMS QOF Aspiration,PRC DELEGATED CO-COMMISSIONING,HEALTH CARE SURGERY,18979794,"4,381.71 "
Department of Health,NHS Sheffield CCG,30/09/2017,C&M-GMS Cost of Drugs -Prescribing,LOCAL ENHANCED SERVICES,HEELEY GREEN SURGERY,18961663,410.67 
Department of Health,NHS Sheffield CCG,30/09/2017,C&M-GMS DES Extended Hours Access,PRC DELEGATED CO-COMMISSIONING,HEELEY GREEN SURGERY,18961663,"2,696.10 "
Department of Health,NHS Sheffield CCG,30/09/2017,C&M-GMS Global Sum,PRC DELEGATED CO-COMMISSIONING,HEELEY GREEN SURGERY,18961663,"39,215.99 "
Department of Health,NHS Sheffield CCG,30/09/2017,C&M-GMS MPIG Correction Factor,PRC DELEGATED CO-COMMISSIONING,HEELEY GREEN SURGERY,18961663,564.30 
Department of Health,NHS Sheffield CCG,30/09/2017,C&M-GMS PCO Seniority,PRC DELEGATED CO-COMMISSIONING,HEELEY GREEN SURGERY,18961663,911.31 
Department of Health,NHS Sheffield CCG,30/09/2017,C&M-GMS Prem Notional Rent,PRC DELEGATED CO-COMMISSIONING,HEELEY GREEN SURGERY,18961663,"3,254.17 "
Department of Health,NHS Sheffield CCG,30/09/2017,C&M-GMS Prem Rates,PRC DELEGATED CO-COMMISSIONING,HEELEY GREEN SURGERY,18961663,245.00 
Department of Health,NHS Sheffield CCG,30/09/2017,C&M-GMS Prof Fees Prescribing,PRC DELEGATED CO-COMMISSIONING,HEELEY GREEN SURGERY,18961663,71.74 
Department of Health,NHS Sheffield CCG,30/09/2017,C&M-GMS QOF Aspiration,PRC DELEGATED CO-COMMISSIONING,HEELEY GREEN SURGERY,18961663,"4,920.38 "
Department of Health,NHS Sheffield CCG,30/09/2017,C&M-GMS Cost of Drugs -Prescribing,LOCAL ENHANCED SERVICES,HOLLIES MEDICAL CENTRE,18979793,807.36 
Department of Health,NHS Sheffield CCG,30/09/2017,C&M-GMS DES Extended Hours Access,PRC DELEGATED CO-COMMISSIONING,HOLLIES MEDICAL CENTRE,18979793,"4,035.13 "
Department of Health,NHS Sheffield CCG,30/09/2017,C&M-GMS DES Learn Dsblty Hlth Chk,PRC DELEGATED CO-COMMISSIONING,HOLLIES MEDICAL CENTRE,18979793,280.00 
Department of Health,NHS Sheffield CCG,30/09/2017,C&M-GMS DES TPP QRISK,PRC DELEGATED CO-COMMISSIONING,HOLLIES MEDICAL CENTRE,18979793,"1,222.00 "
Department of Health,NHS Sheffield CCG,30/09/2017,C&M-GMS Global Sum,PRC DELEGATED CO-COMMISSIONING,HOLLIES MEDICAL CENTRE,18979793,"52,067.42 "
Department of Health,NHS Sheffield CCG,30/09/2017,C&M-GMS MPIG Correction Factor,PRC DELEGATED CO-COMMISSIONING,HOLLIES MEDICAL CENTRE,18979793,"2,179.09 "
Department of Health,NHS Sheffield CCG,30/09/2017,C&M-GMS PCO Other,PRC DELEGATED CO-COMMISSIONING,HOLLIES MEDICAL CENTRE,18979793,452.60 
Department of Health,NHS Sheffield CCG,30/09/2017,C&M-GMS PCO Seniority,PRC DELEGATED CO-COMMISSIONING,HOLLIES MEDICAL CENTRE,18979793,"4,101.26 "
Department of Health,NHS Sheffield CCG,30/09/2017,C&M-GMS Prem Notional Rent,PRC DELEGATED CO-COMMISSIONING,HOLLIES MEDICAL CENTRE,18979793,"3,229.17 "
Department of Health,NHS Sheffield CCG,30/09/2017,C&M-GMS Prem Rates,PRC DELEGATED CO-COMMISSIONING,HOLLIES MEDICAL CENTRE,18979793,"1,188.00 "
Department of Health,NHS Sheffield CCG,30/09/2017,C&M-GMS Prof Fees Prescribing,PRC DELEGATED CO-COMMISSIONING,HOLLIES MEDICAL CENTRE,18979793,92.56 
Department of Health,NHS Sheffield CCG,30/09/2017,C&M-GMS QOF Aspiration,PRC DELEGATED CO-COMMISSIONING,HOLLIES MEDICAL CENTRE,18979793,"6,561.21 "
Department of Health,NHS Sheffield CCG,30/09/2017,Cont Care-Physical Disab (<65),CHC ADULT FULLY FUNDED,HORIZON CARE HOMES LTD,18808174,"53,424.75 "
Department of Health,NHS Sheffield CCG,30/09/2017,Cont Care-Physical Disab (<65),CHC ADULT FULLY FUNDED,HORIZON CARE HOMES LTD,18808187,"71,023.57 "
Department of Health,NHS Sheffield CCG,30/09/2017,C&M-PMS Contract Value,PRC DELEGATED CO-COMMISSIONING,JAUNTY SPRINGS HEALTH CENTRE,18757083,"28,902.32 "
Department of Health,NHS Sheffield CCG,30/09/2017,C&M-PMS DES Extended Hours Access,PRC DELEGATED CO-COMMISSIONING,JAUNTY SPRINGS HEALTH CENTRE,18757083,"1,719.98 "
Department of Health,NHS Sheffield CCG,30/09/2017,C&M-PMS Funding Differential Review,PRC DELEGATED CO-COMMISSIONING,JAUNTY SPRINGS HEALTH CENTRE,18757083,448.00 
Department of Health,NHS Sheffield CCG,30/09/2017,C&M-PMS Out of Hours Opt Outs,PRC DELEGATED CO-COMMISSIONING,JAUNTY SPRINGS HEALTH CENTRE,18757083,1.30 
Department of Health,NHS Sheffield CCG,30/09/2017,C&M-PMS PCO Other,PRC DELEGATED CO-COMMISSIONING,JAUNTY SPRINGS HEALTH CENTRE,18757083,384.50 
Department of Health,NHS Sheffield CCG,30/09/2017,C&M-PMS PCO Seniority,PRC DELEGATED CO-COMMISSIONING,JAUNTY SPRINGS HEALTH CENTRE,18757083,848.05 
Department of Health,NHS Sheffield CCG,30/09/2017,C&M-PMS Prem Notional Rent,PRC DELEGATED CO-COMMISSIONING,JAUNTY SPRINGS HEALTH CENTRE,18757083,"3,208.33 "
Department of Health,NHS Sheffield CCG,30/09/2017,C&M-PMS Prem Rates,PRC DELEGATED CO-COMMISSIONING,JAUNTY SPRINGS HEALTH CENTRE,18757083,570.00 
Department of Health,NHS Sheffield CCG,30/09/2017,C&M-PMS Prem Water Rates,PRC DELEGATED CO-COMMISSIONING,JAUNTY SPRINGS HEALTH CENTRE,18757083,93.45 
Department of Health,NHS Sheffield CCG,30/09/2017,C&M-PMS QOF Aspiration,PRC DELEGATED CO-COMMISSIONING,JAUNTY SPRINGS HEALTH CENTRE,18757083,"4,393.31 "
Department of Health,NHS Sheffield CCG,30/09/2017,C&M-GMS IT Comm Servs -GP Practices,PRIMARY CARE IT,KIER BUSINESS SERVICES LTD,18684959,"105,622.80 "
Department of Health,NHS Sheffield CCG,30/09/2017,FM Computer Contracts,BUSINESS INFORMATICS,KIER BUSINESS SERVICES LTD,18684959,"37,381.20 "
Department of Health,NHS Sheffield CCG,30/09/2017,C&M-GMS LES Translation Fees,INTERPRETING SERVICES,LANGUAGELINE SOLUTIONS,18722071,"67,915.44 "
Department of Health,NHS Sheffield CCG,30/09/2017,Cont Care-Physical Disab (<65),CHC ADULT FULLY FUNDED,LONGLEY HEALTH CARE LTD,18808137,"51,718.89 "
Department of Health,NHS Sheffield CCG,30/09/2017,Cont Care-Physical Disab (<65),CHC ADULT FULLY FUNDED,LOXLEY HEALTH CARE LTD,18808158,"49,198.48 "
Department of Health,NHS Sheffield CCG,30/09/2017,C&M-PMS GP Statutory Levy,PRC DELEGATED CO-COMMISSIONING,MANCHESTER ROAD SURGERY SHEFFIELD,18757088,(138.66)
Department of Health,NHS Sheffield CCG,30/09/2017,C&M-PMS Out of Hours Opt Outs,PRC DELEGATED CO-COMMISSIONING,MANCHESTER ROAD SURGERY SHEFFIELD,18757088,"(1,419.04)"
Department of Health,NHS Sheffield CCG,30/09/2017,C&M-PMS Voluntary Levy,PRC DELEGATED CO-COMMISSIONING,MANCHESTER ROAD SURGERY SHEFFIELD,18757088,(23.11)
Department of Health,NHS Sheffield CCG,30/09/2017,C&M-PMS Contract Value,PRC DELEGATED CO-COMMISSIONING,MANCHESTER ROAD SURGERY SHEFFIELD,18783773,"30,052.14 "
Department of Health,NHS Sheffield CCG,30/09/2017,C&M-PMS DES TPP QRISK,PRC DELEGATED CO-COMMISSIONING,MANCHESTER ROAD SURGERY SHEFFIELD,18783773,383.50 
Department of Health,NHS Sheffield CCG,30/09/2017,C&M-PMS Funding Differential Review,PRC DELEGATED CO-COMMISSIONING,MANCHESTER ROAD SURGERY SHEFFIELD,18783773,446.67 
Department of Health,NHS Sheffield CCG,30/09/2017,C&M-PMS PCO Seniority,PRC DELEGATED CO-COMMISSIONING,MANCHESTER ROAD SURGERY SHEFFIELD,18783773,"2,032.17 "
Department of Health,NHS Sheffield CCG,30/09/2017,C&M-PMS Prem Cost Rent,PRC DELEGATED CO-COMMISSIONING,MANCHESTER ROAD SURGERY SHEFFIELD,18783773,"3,472.17 "
Department of Health,NHS Sheffield CCG,30/09/2017,C&M-PMS Prem Notional Rent,PRC DELEGATED CO-COMMISSIONING,MANCHESTER ROAD SURGERY SHEFFIELD,18783773,442.92 
Department of Health,NHS Sheffield CCG,30/09/2017,C&M-PMS Prem Rates,PRC DELEGATED CO-COMMISSIONING,MANCHESTER ROAD SURGERY SHEFFIELD,18783773,920.00 
Department of Health,NHS Sheffield CCG,30/09/2017,C&M-PMS Prem Water Rates,PRC DELEGATED CO-COMMISSIONING,MANCHESTER ROAD SURGERY SHEFFIELD,18783773,152.34 
Department of Health,NHS Sheffield CCG,30/09/2017,C&M-PMS QOF Aspiration,PRC DELEGATED CO-COMMISSIONING,MANCHESTER ROAD SURGERY SHEFFIELD,18783773,"4,335.60 "
Department of Health,NHS Sheffield CCG,30/09/2017,C&M-GMS Cost of Drugs -Prescribing,LOCAL ENHANCED SERVICES,MANOR PARK MEDICAL CENTRE SHEFFIELD,18979796,392.38 
Department of Health,NHS Sheffield CCG,30/09/2017,C&M-GMS DES Extended Hours Access,PRC DELEGATED CO-COMMISSIONING,MANOR PARK MEDICAL CENTRE SHEFFIELD,18979796,"2,088.10 "
Department of Health,NHS Sheffield CCG,30/09/2017,C&M-GMS DES TPP QRISK,PRC DELEGATED CO-COMMISSIONING,MANOR PARK MEDICAL CENTRE SHEFFIELD,18979796,884.00 
Department of Health,NHS Sheffield CCG,30/09/2017,C&M-GMS Global Sum,PRC DELEGATED CO-COMMISSIONING,MANOR PARK MEDICAL CENTRE SHEFFIELD,18979796,"33,032.73 "
Department of Health,NHS Sheffield CCG,30/09/2017,C&M-GMS MPIG Correction Factor,PRC DELEGATED CO-COMMISSIONING,MANOR PARK MEDICAL CENTRE SHEFFIELD,18979796,559.19 
Department of Health,NHS Sheffield CCG,30/09/2017,C&M-GMS PCO Locum Adop/Pat/Mat,PRC DELEGATED CO-COMMISSIONING,MANOR PARK MEDICAL CENTRE SHEFFIELD,18979796,"3,907.50 "
Department of Health,NHS Sheffield CCG,30/09/2017,C&M-GMS PCO Seniority,PRC DELEGATED CO-COMMISSIONING,MANOR PARK MEDICAL CENTRE SHEFFIELD,18979796,"1,330.92 "
Department of Health,NHS Sheffield CCG,30/09/2017,C&M-GMS Prem Notional Rent,PRC DELEGATED CO-COMMISSIONING,MANOR PARK MEDICAL CENTRE SHEFFIELD,18979796,"3,050.00 "
Department of Health,NHS Sheffield CCG,30/09/2017,C&M-GMS Prem Rates,PRC DELEGATED CO-COMMISSIONING,MANOR PARK MEDICAL CENTRE SHEFFIELD,18979796,428.00 
Department of Health,NHS Sheffield CCG,30/09/2017,C&M-GMS Prof Fees Prescribing,PRC DELEGATED CO-COMMISSIONING,MANOR PARK MEDICAL CENTRE SHEFFIELD,18979796,67.11 
Department of Health,NHS Sheffield CCG,30/09/2017,C&M-GMS QOF Aspiration,PRC DELEGATED CO-COMMISSIONING,MANOR PARK MEDICAL CENTRE SHEFFIELD,18979796,"4,479.66 "
Department of Health,NHS Sheffield CCG,30/09/2017,C&M-GMS Cost of Drugs -Prescribing,LOCAL ENHANCED SERVICES,MATHEWS PRACTICE,18961672,436.94 
Department of Health,NHS Sheffield CCG,30/09/2017,C&M-GMS DES Extended Hours Access,PRC DELEGATED CO-COMMISSIONING,MATHEWS PRACTICE,18961672,"4,369.53 "
Department of Health,NHS Sheffield CCG,30/09/2017,C&M-GMS Global Sum,PRC DELEGATED CO-COMMISSIONING,MATHEWS PRACTICE,18961672,"65,707.91 "
Department of Health,NHS Sheffield CCG,30/09/2017,C&M-GMS MPIG Correction Factor,PRC DELEGATED CO-COMMISSIONING,MATHEWS PRACTICE,18961672,898.44 
Department of Health,NHS Sheffield CCG,30/09/2017,C&M-GMS PCO Seniority,PRC DELEGATED CO-COMMISSIONING,MATHEWS PRACTICE,18961672,"1,539.15 "
Department of Health,NHS Sheffield CCG,30/09/2017,C&M-GMS Prem Notional Rent,PRC DELEGATED CO-COMMISSIONING,MATHEWS PRACTICE,18961672,"9,651.50 "
Department of Health,NHS Sheffield CCG,30/09/2017,C&M-GMS Prem Rates,PRC DELEGATED CO-COMMISSIONING,MATHEWS PRACTICE,18961672,"1,757.00 "
Department of Health,NHS Sheffield CCG,30/09/2017,C&M-GMS Prof Fees Prescribing,PRC DELEGATED CO-COMMISSIONING,MATHEWS PRACTICE,18961672,182.81 
Department of Health,NHS Sheffield CCG,30/09/2017,C&M-GMS QOF Aspiration,PRC DELEGATED CO-COMMISSIONING,MATHEWS PRACTICE,18961672,"9,686.98 "
Department of Health,NHS Sheffield CCG,30/09/2017,C&M-PMS Contract Value,PRC DELEGATED CO-COMMISSIONING,MEADOWHEAD GROUP PRACTICE,18783772,"75,473.75 "
Department of Health,NHS Sheffield CCG,30/09/2017,C&M-PMS DES Extended Hours Access,PRC DELEGATED CO-COMMISSIONING,MEADOWHEAD GROUP PRACTICE,18783772,"4,688.25 "
Department of Health,NHS Sheffield CCG,30/09/2017,C&M-PMS DES TPP QRISK,PRC DELEGATED CO-COMMISSIONING,MEADOWHEAD GROUP PRACTICE,18783772,988.00 
Department of Health,NHS Sheffield CCG,30/09/2017,C&M-PMS Out of Hours Opt Outs,PRC DELEGATED CO-COMMISSIONING,MEADOWHEAD GROUP PRACTICE,18783772,46.06 
Department of Health,NHS Sheffield CCG,30/09/2017,C&M-PMS PCO Seniority,PRC DELEGATED CO-COMMISSIONING,MEADOWHEAD GROUP PRACTICE,18783772,"4,648.55 "
Department of Health,NHS Sheffield CCG,30/09/2017,C&M-PMS Prem Cost Rent,PRC DELEGATED CO-COMMISSIONING,MEADOWHEAD GROUP PRACTICE,18783772,"3,647.42 "
Department of Health,NHS Sheffield CCG,30/09/2017,C&M-PMS Prem Notional Rent,PRC DELEGATED CO-COMMISSIONING,MEADOWHEAD GROUP PRACTICE,18783772,"3,358.33 "
Department of Health,NHS Sheffield CCG,30/09/2017,C&M-PMS Prem Rates,PRC DELEGATED CO-COMMISSIONING,MEADOWHEAD GROUP PRACTICE,18783772,"1,709.00 "
Department of Health,NHS Sheffield CCG,30/09/2017,C&M-PMS Prem Water Rates,PRC DELEGATED CO-COMMISSIONING,MEADOWHEAD GROUP PRACTICE,18783772,263.13 
Department of Health,NHS Sheffield CCG,30/09/2017,C&M-PMS QOF Aspiration,PRC DELEGATED CO-COMMISSIONING,MEADOWHEAD GROUP PRACTICE,18783772,"10,533.01 "
Department of Health,NHS Sheffield CCG,30/09/2017,C&M-GMS Cost of Drugs -Prescribing,LOCAL ENHANCED SERVICES,MEDICAL CENTRE CRYSTAL PEAKS,18979795,618.37 
Department of Health,NHS Sheffield CCG,30/09/2017,C&M-GMS DES Extended Hours Access,PRC DELEGATED CO-COMMISSIONING,MEDICAL CENTRE CRYSTAL PEAKS,18979795,"3,139.28 "
Department of Health,NHS Sheffield CCG,30/09/2017,C&M-GMS DES TPP QRISK,PRC DELEGATED CO-COMMISSIONING,MEDICAL CENTRE CRYSTAL PEAKS,18979795,793.00 
Department of Health,NHS Sheffield CCG,30/09/2017,C&M-GMS Global Sum,PRC DELEGATED CO-COMMISSIONING,MEDICAL CENTRE CRYSTAL PEAKS,18979795,"43,411.71 "
Department of Health,NHS Sheffield CCG,30/09/2017,C&M-GMS MPIG Correction Factor,PRC DELEGATED CO-COMMISSIONING,MEDICAL CENTRE CRYSTAL PEAKS,18979795,"1,697.01 "
Department of Health,NHS Sheffield CCG,30/09/2017,C&M-GMS PCO Other,PRC DELEGATED CO-COMMISSIONING,MEDICAL CENTRE CRYSTAL PEAKS,18979795,452.60 
Department of Health,NHS Sheffield CCG,30/09/2017,C&M-GMS PCO Seniority,PRC DELEGATED CO-COMMISSIONING,MEDICAL CENTRE CRYSTAL PEAKS,18979795,"2,448.71 "
Department of Health,NHS Sheffield CCG,30/09/2017,C&M-GMS Prem Notional Rent,PRC DELEGATED CO-COMMISSIONING,MEDICAL CENTRE CRYSTAL PEAKS,18979795,270.00 
Department of Health,NHS Sheffield CCG,30/09/2017,C&M-GMS Prem Rates,PRC DELEGATED CO-COMMISSIONING,MEDICAL CENTRE CRYSTAL PEAKS,18979795,"1,822.00 "
Department of Health,NHS Sheffield CCG,30/09/2017,C&M-GMS Prof Fees Prescribing,PRC DELEGATED CO-COMMISSIONING,MEDICAL CENTRE CRYSTAL PEAKS,18979795,263.81 
Department of Health,NHS Sheffield CCG,30/09/2017,C&M-GMS QOF Aspiration,PRC DELEGATED CO-COMMISSIONING,MEDICAL CENTRE CRYSTAL PEAKS,18979795,"6,023.36 "
Department of Health,NHS Sheffield CCG,30/09/2017,C&M-GMS Cost of Drugs -Prescribing,LOCAL ENHANCED SERVICES,MILL ROAD SURGERY SHEFFIELD,18979797,592.30 
Department of Health,NHS Sheffield CCG,30/09/2017,C&M-GMS DES Extended Hours Access,PRC DELEGATED CO-COMMISSIONING,MILL ROAD SURGERY SHEFFIELD,18979797,"2,489.00 "
Department of Health,NHS Sheffield CCG,30/09/2017,C&M-GMS DES TPP QRISK,PRC DELEGATED CO-COMMISSIONING,MILL ROAD SURGERY SHEFFIELD,18979797,156.00 
Department of Health,NHS Sheffield CCG,30/09/2017,C&M-GMS Global Sum,PRC DELEGATED CO-COMMISSIONING,MILL ROAD SURGERY SHEFFIELD,18979797,"37,785.02 "
Department of Health,NHS Sheffield CCG,30/09/2017,C&M-GMS MPIG Correction Factor,PRC DELEGATED CO-COMMISSIONING,MILL ROAD SURGERY SHEFFIELD,18979797,183.06 
Department of Health,NHS Sheffield CCG,30/09/2017,C&M-GMS PCO Other,PRC DELEGATED CO-COMMISSIONING,MILL ROAD SURGERY SHEFFIELD,18979797,452.60 
Department of Health,NHS Sheffield CCG,30/09/2017,C&M-GMS PCO Seniority,PRC DELEGATED CO-COMMISSIONING,MILL ROAD SURGERY SHEFFIELD,18979797,"1,617.01 "
Department of Health,NHS Sheffield CCG,30/09/2017,C&M-GMS Prem Notional Rent,PRC DELEGATED CO-COMMISSIONING,MILL ROAD SURGERY SHEFFIELD,18979797,"4,587.50 "
Department of Health,NHS Sheffield CCG,30/09/2017,C&M-GMS Prem Rates,PRC DELEGATED CO-COMMISSIONING,MILL ROAD SURGERY SHEFFIELD,18979797,833.00 
Department of Health,NHS Sheffield CCG,30/09/2017,C&M-GMS Prof Fees Prescribing,PRC DELEGATED CO-COMMISSIONING,MILL ROAD SURGERY SHEFFIELD,18979797,85.63 
Department of Health,NHS Sheffield CCG,30/09/2017,C&M-GMS QOF Aspiration,PRC DELEGATED CO-COMMISSIONING,MILL ROAD SURGERY SHEFFIELD,18979797,"5,445.09 "
Department of Health,NHS Sheffield CCG,30/09/2017,Cont Care-Learning Disab(<65),CHC ADULT FULLY FUNDED,MOORVILLE RESIDENTIAL,19025413,"20,005.05 "
Department of Health,NHS Sheffield CCG,30/09/2017,Cont Care-Learning Disab(<65),CHC ADULT JOINT FUNDED,MOORVILLE RESIDENTIAL,19025413,"2,909.57 "
Department of Health,NHS Sheffield CCG,30/09/2017,Cont Care-Mental Health (<65),CHC ADULT FULLY FUNDED,MOORVILLE RESIDENTIAL,19025413,"3,252.87 "
Department of Health,NHS Sheffield CCG,30/09/2017,C&M-PMS Contract Value,PRC DELEGATED CO-COMMISSIONING,MOSBOROUGH HEALTH CENTRE,18757094,"45,903.40 "
Department of Health,NHS Sheffield CCG,30/09/2017,C&M-PMS DES Extended Hours Access,PRC DELEGATED CO-COMMISSIONING,MOSBOROUGH HEALTH CENTRE,18757094,"3,118.38 "
Department of Health,NHS Sheffield CCG,30/09/2017,C&M-PMS Funding Differential Review,PRC DELEGATED CO-COMMISSIONING,MOSBOROUGH HEALTH CENTRE,18757094,"1,253.00 "
Department of Health,NHS Sheffield CCG,30/09/2017,C&M-PMS Out of Hours Opt Outs,PRC DELEGATED CO-COMMISSIONING,MOSBOROUGH HEALTH CENTRE,18757094,26.91 
Department of Health,NHS Sheffield CCG,30/09/2017,C&M-PMS PCO Other,PRC DELEGATED CO-COMMISSIONING,MOSBOROUGH HEALTH CENTRE,18757094,452.60 
Department of Health,NHS Sheffield CCG,30/09/2017,C&M-PMS PCO Seniority,PRC DELEGATED CO-COMMISSIONING,MOSBOROUGH HEALTH CENTRE,18757094,"2,936.33 "
Department of Health,NHS Sheffield CCG,30/09/2017,C&M-PMS Prem Notional Rent,PRC DELEGATED CO-COMMISSIONING,MOSBOROUGH HEALTH CENTRE,18757094,"4,091.67 "
Department of Health,NHS Sheffield CCG,30/09/2017,C&M-PMS QOF Aspiration,PRC DELEGATED CO-COMMISSIONING,MOSBOROUGH HEALTH CENTRE,18757094,"6,017.44 "
Department of Health,NHS Sheffield CCG,30/09/2017,C&M-PMS Contract Value,PRC DELEGATED CO-COMMISSIONING,NETHERGREEN SURGERY,18783774,"60,253.47 "
Department of Health,NHS Sheffield CCG,30/09/2017,C&M-PMS DES TPP QRISK,PRC DELEGATED CO-COMMISSIONING,NETHERGREEN SURGERY,18783774,"1,410.50 "
Department of Health,NHS Sheffield CCG,30/09/2017,C&M-PMS Funding Differential Review,PRC DELEGATED CO-COMMISSIONING,NETHERGREEN SURGERY,18783774,"1,876.58 "
Department of Health,NHS Sheffield CCG,30/09/2017,C&M-PMS PCO Seniority,PRC DELEGATED CO-COMMISSIONING,NETHERGREEN SURGERY,18783774,"4,543.36 "
Department of Health,NHS Sheffield CCG,30/09/2017,C&M-PMS Prem Cost Rent,PRC DELEGATED CO-COMMISSIONING,NETHERGREEN SURGERY,18783774,"5,057.33 "
Department of Health,NHS Sheffield CCG,30/09/2017,C&M-PMS Prem Rates,PRC DELEGATED CO-COMMISSIONING,NETHERGREEN SURGERY,18783774,"1,200.00 "
Department of Health,NHS Sheffield CCG,30/09/2017,C&M-PMS QOF Aspiration,PRC DELEGATED CO-COMMISSIONING,NETHERGREEN SURGERY,18783774,"6,339.79 "
Department of Health,NHS Sheffield CCG,30/09/2017,Cont Care-Physical Disab (<65),CHC ADULT FULLY FUNDED,NEVILLE HEALTH CARE LTD,18808149,"58,649.13 "
Department of Health,NHS Sheffield CCG,30/09/2017,Clinical&Medical-Othe Public Sector,NCAS/OATS,NHS GRAMPIAN,19005880,"49,550.00 "
Department of Health,NHS Sheffield CCG,30/09/2017,Clinical&Medical-Othe Public Sector,NCAS/OATS,NHS GRAMPIAN,19006309,"(49,550.00)"
Department of Health,NHS Sheffield CCG,30/09/2017,C&M-GMS Cost of Drugs -Prescribing,LOCAL ENHANCED SERVICES,NORFOLK PARK HEALTH CENTRE,18979798,579.69 
Department of Health,NHS Sheffield CCG,30/09/2017,C&M-GMS DES TPP QRISK,PRC DELEGATED CO-COMMISSIONING,NORFOLK PARK HEALTH CENTRE,18979798,312.00 
Department of Health,NHS Sheffield CCG,30/09/2017,C&M-GMS Global Sum,PRC DELEGATED CO-COMMISSIONING,NORFOLK PARK HEALTH CENTRE,18979798,"33,821.75 "
Department of Health,NHS Sheffield CCG,30/09/2017,C&M-GMS MPIG Correction Factor,PRC DELEGATED CO-COMMISSIONING,NORFOLK PARK HEALTH CENTRE,18979798,"1,386.91 "
Department of Health,NHS Sheffield CCG,30/09/2017,C&M-GMS PCO Seniority,PRC DELEGATED CO-COMMISSIONING,NORFOLK PARK HEALTH CENTRE,18979798,"3,174.50 "
Department of Health,NHS Sheffield CCG,30/09/2017,C&M-GMS Prem Healthcentre Rent,PRC DELEGATED CO-COMMISSIONING,NORFOLK PARK HEALTH CENTRE,18979798,"28,450.22 "
Department of Health,NHS Sheffield CCG,30/09/2017,C&M-GMS Prof Fees Prescribing,PRC DELEGATED CO-COMMISSIONING,NORFOLK PARK HEALTH CENTRE,18979798,85.62 
Department of Health,NHS Sheffield CCG,30/09/2017,C&M-GMS QOF Aspiration,PRC DELEGATED CO-COMMISSIONING,NORFOLK PARK HEALTH CENTRE,18979798,"4,068.39 "
Department of Health,NHS Sheffield CCG,30/09/2017,Clinical&Medical-Commercial Sector,PATIENT TRANSPORT,NORTHERN TAXIS LTD,18808086,"161,646.60 "
Department of Health,NHS Sheffield CCG,30/09/2017,Hcare Srv Rec NHS Trust-Non Contract,NCAS/OATS,NORTHUMBERLAND TYNE AND WEAR NHS FOUNDATION TRUST,18919317,"74,741.00 "
Department of Health,NHS Sheffield CCG,30/09/2017,C&M-GMS Cost of Drugs -Prescribing,LOCAL ENHANCED SERVICES,NORWOOD MEDICAL CENTRE SHEFFIELD,18979799,457.46 
Department of Health,NHS Sheffield CCG,30/09/2017,C&M-GMS DES Extended Hours Access,PRC DELEGATED CO-COMMISSIONING,NORWOOD MEDICAL CENTRE SHEFFIELD,18979799,"3,752.03 "
Department of Health,NHS Sheffield CCG,30/09/2017,C&M-GMS DES Learn Dsblty Hlth Chk,PRC DELEGATED CO-COMMISSIONING,NORWOOD MEDICAL CENTRE SHEFFIELD,18979799,"1,120.00 "
Department of Health,NHS Sheffield CCG,30/09/2017,C&M-GMS DES TPP QRISK,PRC DELEGATED CO-COMMISSIONING,NORWOOD MEDICAL CENTRE SHEFFIELD,18979799,13.00 
Department of Health,NHS Sheffield CCG,30/09/2017,C&M-GMS Global Sum,PRC DELEGATED CO-COMMISSIONING,NORWOOD MEDICAL CENTRE SHEFFIELD,18979799,"60,950.79 "
Department of Health,NHS Sheffield CCG,30/09/2017,C&M-GMS PCO Other,PRC DELEGATED CO-COMMISSIONING,NORWOOD MEDICAL CENTRE SHEFFIELD,18979799,452.60 
Department of Health,NHS Sheffield CCG,30/09/2017,C&M-GMS PCO Seniority,PRC DELEGATED CO-COMMISSIONING,NORWOOD MEDICAL CENTRE SHEFFIELD,18979799,"3,457.57 "
Department of Health,NHS Sheffield CCG,30/09/2017,C&M-GMS Prem Notional Rent,PRC DELEGATED CO-COMMISSIONING,NORWOOD MEDICAL CENTRE SHEFFIELD,18979799,"5,187.50 "
Department of Health,NHS Sheffield CCG,30/09/2017,C&M-GMS Prof Fees Prescribing,PRC DELEGATED CO-COMMISSIONING,NORWOOD MEDICAL CENTRE SHEFFIELD,18979799,127.27 
Department of Health,NHS Sheffield CCG,30/09/2017,C&M-GMS QOF Aspiration,PRC DELEGATED CO-COMMISSIONING,NORWOOD MEDICAL CENTRE SHEFFIELD,18979799,"8,411.55 "
Department of Health,NHS Sheffield CCG,30/09/2017,Clinical&Medical-Independent Sector,ACUTE COMMISSIONING,ONEHEALTH GROUP,18808049,"90,000.00 "
Department of Health,NHS Sheffield CCG,30/09/2017,Cont Care-Learning Disab(<65),CHC ADULT JOINT FUNDED,OPTIONS AUTISM (1) LTD,18986759,"47,288.69 "
Department of Health,NHS Sheffield CCG,30/09/2017,C&M-GMS Cost of Drugs -Dispensing,LOCAL ENHANCED SERVICES,OUGHTIBRIDGE SURGERY,18961707,"33,960.32 "
Department of Health,NHS Sheffield CCG,30/09/2017,C&M-GMS DES Extended Hours Access,PRC DELEGATED CO-COMMISSIONING,OUGHTIBRIDGE SURGERY,18961707,"2,780.18 "
Department of Health,NHS Sheffield CCG,30/09/2017,C&M-GMS Global Sum,PRC DELEGATED CO-COMMISSIONING,OUGHTIBRIDGE SURGERY,18961707,"41,235.48 "
Department of Health,NHS Sheffield CCG,30/09/2017,C&M-GMS PCO Seniority,PRC DELEGATED CO-COMMISSIONING,OUGHTIBRIDGE SURGERY,18961707,"1,206.05 "
Department of Health,NHS Sheffield CCG,30/09/2017,C&M-GMS Prem Notional Rent,PRC DELEGATED CO-COMMISSIONING,OUGHTIBRIDGE SURGERY,18961707,"4,322.75 "
Department of Health,NHS Sheffield CCG,30/09/2017,C&M-GMS Prof Fees Dispensing,PRC DELEGATED CO-COMMISSIONING,OUGHTIBRIDGE SURGERY,18961707,"4,763.00 "
Department of Health,NHS Sheffield CCG,30/09/2017,C&M-GMS PrscrptnChrgsColl&RmttdbyGP,LOCAL ENHANCED SERVICES,OUGHTIBRIDGE SURGERY,18961707,731.00 
Department of Health,NHS Sheffield CCG,30/09/2017,C&M-GMS QOF Aspiration,PRC DELEGATED CO-COMMISSIONING,OUGHTIBRIDGE SURGERY,18961707,"4,693.88 "
Department of Health,NHS Sheffield CCG,30/09/2017,C&M-PMS Contract Value,PRC DELEGATED CO-COMMISSIONING,OWLTHORPE MEDICAL CENTRE,18783775,"36,000.73 "
Department of Health,NHS Sheffield CCG,30/09/2017,C&M-PMS DES Extended Hours Access,PRC DELEGATED CO-COMMISSIONING,OWLTHORPE MEDICAL CENTRE,18783775,"2,203.53 "
Department of Health,NHS Sheffield CCG,30/09/2017,C&M-PMS DES Learn Dsblty Hlth Chk,PRC DELEGATED CO-COMMISSIONING,OWLTHORPE MEDICAL CENTRE,18783775,420.00 
Department of Health,NHS Sheffield CCG,30/09/2017,C&M-PMS DES TPP QRISK,PRC DELEGATED CO-COMMISSIONING,OWLTHORPE MEDICAL CENTRE,18783775,539.50 
Department of Health,NHS Sheffield CCG,30/09/2017,C&M-PMS Funding Differential Review,PRC DELEGATED CO-COMMISSIONING,OWLTHORPE MEDICAL CENTRE,18783775,"1,499.67 "
Department of Health,NHS Sheffield CCG,30/09/2017,C&M-PMS Out of Hours Opt Outs,PRC DELEGATED CO-COMMISSIONING,OWLTHORPE MEDICAL CENTRE,18783775,214.02 
Department of Health,NHS Sheffield CCG,30/09/2017,C&M-PMS PCO Other,PRC DELEGATED CO-COMMISSIONING,OWLTHORPE MEDICAL CENTRE,18783775,384.50 
Department of Health,NHS Sheffield CCG,30/09/2017,C&M-PMS PCO Seniority,PRC DELEGATED CO-COMMISSIONING,OWLTHORPE MEDICAL CENTRE,18783775,862.31 
Department of Health,NHS Sheffield CCG,30/09/2017,C&M-PMS Prem Actual Rent,PRC DELEGATED CO-COMMISSIONING,OWLTHORPE MEDICAL CENTRE,18783775,"7,539.58 "
Department of Health,NHS Sheffield CCG,30/09/2017,C&M-PMS QOF Aspiration,PRC DELEGATED CO-COMMISSIONING,OWLTHORPE MEDICAL CENTRE,18783775,"4,031.40 "
Department of Health,NHS Sheffield CCG,30/09/2017,C&M-PMS Contract Value,PRC DELEGATED CO-COMMISSIONING,PAGE HALL MEDICAL CENTRE,18757104,"53,335.89 "
Department of Health,NHS Sheffield CCG,30/09/2017,C&M-PMS DES Extended Hours Access,PRC DELEGATED CO-COMMISSIONING,PAGE HALL MEDICAL CENTRE,18757104,"3,538.75 "
Department of Health,NHS Sheffield CCG,30/09/2017,C&M-PMS Funding Differential Review,PRC DELEGATED CO-COMMISSIONING,PAGE HALL MEDICAL CENTRE,18757104,"5,391.08 "
Department of Health,NHS Sheffield CCG,30/09/2017,C&M-PMS Out of Hours Opt Outs,PRC DELEGATED CO-COMMISSIONING,PAGE HALL MEDICAL CENTRE,18757104,23.04 
Department of Health,NHS Sheffield CCG,30/09/2017,C&M-PMS PCO Seniority,PRC DELEGATED CO-COMMISSIONING,PAGE HALL MEDICAL CENTRE,18757104,"2,695.02 "
Department of Health,NHS Sheffield CCG,30/09/2017,C&M-PMS Prem Actual Rent,PRC DELEGATED CO-COMMISSIONING,PAGE HALL MEDICAL CENTRE,18757104,135.00 
Department of Health,NHS Sheffield CCG,30/09/2017,C&M-PMS Prem Notional Rent,PRC DELEGATED CO-COMMISSIONING,PAGE HALL MEDICAL CENTRE,18757104,"4,833.33 "
Department of Health,NHS Sheffield CCG,30/09/2017,C&M-PMS Prem Rates,PRC DELEGATED CO-COMMISSIONING,PAGE HALL MEDICAL CENTRE,18757104,875.00 
Department of Health,NHS Sheffield CCG,30/09/2017,C&M-PMS QOF Aspiration,PRC DELEGATED CO-COMMISSIONING,PAGE HALL MEDICAL CENTRE,18757104,"5,102.24 "
Department of Health,NHS Sheffield CCG,30/09/2017,C&M-PMS Contract Value,PRC DELEGATED CO-COMMISSIONING,PARK HEALTH CENTRE,18783776,"40,085.43 "
Department of Health,NHS Sheffield CCG,30/09/2017,C&M-PMS DES TPP QRISK,PRC DELEGATED CO-COMMISSIONING,PARK HEALTH CENTRE,18783776,266.50 
Department of Health,NHS Sheffield CCG,30/09/2017,C&M-PMS Funding Differential Review,PRC DELEGATED CO-COMMISSIONING,PARK HEALTH CENTRE,18783776,"3,290.17 "
Department of Health,NHS Sheffield CCG,30/09/2017,C&M-PMS Out of Hours Opt Outs,PRC DELEGATED CO-COMMISSIONING,PARK HEALTH CENTRE,18783776,133.94 
Department of Health,NHS Sheffield CCG,30/09/2017,C&M-PMS PCO Locum Adop/Pat/Mat,PRC DELEGATED CO-COMMISSIONING,PARK HEALTH CENTRE,18783776,"4,894.18 "
Department of Health,NHS Sheffield CCG,30/09/2017,C&M-PMS PCO Other,PRC DELEGATED CO-COMMISSIONING,PARK HEALTH CENTRE,18783776,452.60 
Department of Health,NHS Sheffield CCG,30/09/2017,C&M-PMS PCO Seniority,PRC DELEGATED CO-COMMISSIONING,PARK HEALTH CENTRE,18783776,"2,783.93 "
Department of Health,NHS Sheffield CCG,30/09/2017,C&M-PMS Prem Notional Rent,PRC DELEGATED CO-COMMISSIONING,PARK HEALTH CENTRE,18783776,"6,000.00 "
Department of Health,NHS Sheffield CCG,30/09/2017,C&M-PMS QOF Aspiration,PRC DELEGATED CO-COMMISSIONING,PARK HEALTH CENTRE,18783776,"4,293.17 "
Department of Health,NHS Sheffield CCG,30/09/2017,C&M-PMS Contract Value,PRC DELEGATED CO-COMMISSIONING,PITSMOOR SURGERY,18783777,"76,031.60 "
Department of Health,NHS Sheffield CCG,30/09/2017,C&M-PMS DES Extended Hours Access,PRC DELEGATED CO-COMMISSIONING,PITSMOOR SURGERY,18783777,"4,493.98 "
Department of Health,NHS Sheffield CCG,30/09/2017,C&M-PMS DES TPP QRISK,PRC DELEGATED CO-COMMISSIONING,PITSMOOR SURGERY,18783777,26.00 
Department of Health,NHS Sheffield CCG,30/09/2017,C&M-PMS Out of Hours Opt Outs,PRC DELEGATED CO-COMMISSIONING,PITSMOOR SURGERY,18783777,189.65 
Department of Health,NHS Sheffield CCG,30/09/2017,C&M-PMS PCO Seniority,PRC DELEGATED CO-COMMISSIONING,PITSMOOR SURGERY,18783777,"3,016.94 "
Department of Health,NHS Sheffield CCG,30/09/2017,C&M-PMS Prem Notional Rent,PRC DELEGATED CO-COMMISSIONING,PITSMOOR SURGERY,18783777,"9,650.00 "
Department of Health,NHS Sheffield CCG,30/09/2017,C&M-PMS QOF Aspiration,PRC DELEGATED CO-COMMISSIONING,PITSMOOR SURGERY,18783777,"7,463.31 "
Department of Health,NHS Sheffield CCG,30/09/2017,C&M-PMS Contract Value,PRC DELEGATED CO-COMMISSIONING,PORTER BROOK MEDICAL CENTRE,18757111,"(18,365.62)"
Department of Health,NHS Sheffield CCG,30/09/2017,C&M-PMS GP Statutory Levy,PRC DELEGATED CO-COMMISSIONING,PORTER BROOK MEDICAL CENTRE,18757111,(831.48)
Department of Health,NHS Sheffield CCG,30/09/2017,C&M-PMS Out of Hours Opt Outs,PRC DELEGATED CO-COMMISSIONING,PORTER BROOK MEDICAL CENTRE,18757111,"(7,538.64)"
Department of Health,NHS Sheffield CCG,30/09/2017,C&M-PMS Voluntary Levy,PRC DELEGATED CO-COMMISSIONING,PORTER BROOK MEDICAL CENTRE,18757111,(138.58)
Department of Health,NHS Sheffield CCG,30/09/2017,C&M-PMS Contract Value,PRC DELEGATED CO-COMMISSIONING,PORTER BROOK MEDICAL CENTRE,18783778,"159,923.39 "
Department of Health,NHS Sheffield CCG,30/09/2017,C&M-PMS DES Extended Hours Access,PRC DELEGATED CO-COMMISSIONING,PORTER BROOK MEDICAL CENTRE,18783778,"13,620.63 "
Department of Health,NHS Sheffield CCG,30/09/2017,C&M-PMS DES Learn Dsblty Hlth Chk,PRC DELEGATED CO-COMMISSIONING,PORTER BROOK MEDICAL CENTRE,18783778,980.00 
Department of Health,NHS Sheffield CCG,30/09/2017,C&M-PMS DES TPP QRISK,PRC DELEGATED CO-COMMISSIONING,PORTER BROOK MEDICAL CENTRE,18783778,780.00 
Department of Health,NHS Sheffield CCG,30/09/2017,C&M-PMS Funding Differential Review,PRC DELEGATED CO-COMMISSIONING,PORTER BROOK MEDICAL CENTRE,18783778,"5,112.08 "
Department of Health,NHS Sheffield CCG,30/09/2017,C&M-PMS Out of Hours Opt Outs,PRC DELEGATED CO-COMMISSIONING,PORTER BROOK MEDICAL CENTRE,18783778,911.78 
Department of Health,NHS Sheffield CCG,30/09/2017,C&M-PMS PCO Other,PRC DELEGATED CO-COMMISSIONING,PORTER BROOK MEDICAL CENTRE,18783778,591.80 
Department of Health,NHS Sheffield CCG,30/09/2017,C&M-PMS PCO Seniority,PRC DELEGATED CO-COMMISSIONING,PORTER BROOK MEDICAL CENTRE,18783778,"8,613.15 "
Department of Health,NHS Sheffield CCG,30/09/2017,C&M-PMS Prem Actual Rent,PRC DELEGATED CO-COMMISSIONING,PORTER BROOK MEDICAL CENTRE,18783778,"1,333.33 "
Department of Health,NHS Sheffield CCG,30/09/2017,C&M-PMS Prem Notional Rent,PRC DELEGATED CO-COMMISSIONING,PORTER BROOK MEDICAL CENTRE,18783778,"9,559.58 "
Department of Health,NHS Sheffield CCG,30/09/2017,C&M-PMS Prem Rates,PRC DELEGATED CO-COMMISSIONING,PORTER BROOK MEDICAL CENTRE,18783778,"1,956.00 "
Department of Health,NHS Sheffield CCG,30/09/2017,C&M-PMS QOF Aspiration,PRC DELEGATED CO-COMMISSIONING,PORTER BROOK MEDICAL CENTRE,18783778,"8,899.04 "
Department of Health,NHS Sheffield CCG,30/09/2017,C&M-APMS DES Extended Hours Access,LOCAL ENHANCED SERVICES,PRIMARY CARE SHEFFIELD LTD,18684985,"289,935.17 "
Department of Health,NHS Sheffield CCG,30/09/2017,C&M-GMS LES Basket of Procedures,LOCAL ENHANCED SERVICES,PRIMARY CARE SHEFFIELD LTD,18710162,"25,850.00 "
Department of Health,NHS Sheffield CCG,30/09/2017,C&M-OES Childrens Schemes,LOCAL ENHANCED SERVICES,PRIMARY EYECARE (SHEFFIELD) LTD,18710176,"1,625.00 "
Department of Health,NHS Sheffield CCG,30/09/2017,C&M-OES Glaucoma,LOCAL ENHANCED SERVICES,PRIMARY EYECARE (SHEFFIELD) LTD,18710176,595.00 
Department of Health,NHS Sheffield CCG,30/09/2017,C&M-OES Intra-ocular Ocular Hypertn,LOCAL ENHANCED SERVICES,PRIMARY EYECARE (SHEFFIELD) LTD,18710176,960.00 
Department of Health,NHS Sheffield CCG,30/09/2017,C&M-OES PEARS,LOCAL ENHANCED SERVICES,PRIMARY EYECARE (SHEFFIELD) LTD,18710176,"26,343.00 "
Department of Health,NHS Sheffield CCG,30/09/2017,C&M-PMS Contract Value,PRC DELEGATED CO-COMMISSIONING,RICHMOND MEDICAL CENTRE,18783779,"62,460.34 "
Department of Health,NHS Sheffield CCG,30/09/2017,C&M-PMS DES Extended Hours Access,PRC DELEGATED CO-COMMISSIONING,RICHMOND MEDICAL CENTRE,18783779,"4,047.00 "
Department of Health,NHS Sheffield CCG,30/09/2017,C&M-PMS DES Learn Dsblty Hlth Chk,PRC DELEGATED CO-COMMISSIONING,RICHMOND MEDICAL CENTRE,18783779,280.00 
Department of Health,NHS Sheffield CCG,30/09/2017,C&M-PMS DES TPP QRISK,PRC DELEGATED CO-COMMISSIONING,RICHMOND MEDICAL CENTRE,18783779,45.50 
Department of Health,NHS Sheffield CCG,30/09/2017,C&M-PMS Funding Differential Review,PRC DELEGATED CO-COMMISSIONING,RICHMOND MEDICAL CENTRE,18783779,"1,802.33 "
Department of Health,NHS Sheffield CCG,30/09/2017,C&M-PMS PCO Other,PRC DELEGATED CO-COMMISSIONING,RICHMOND MEDICAL CENTRE,18783779,452.60 
Department of Health,NHS Sheffield CCG,30/09/2017,C&M-PMS PCO Seniority,PRC DELEGATED CO-COMMISSIONING,RICHMOND MEDICAL CENTRE,18783779,"2,281.77 "
Department of Health,NHS Sheffield CCG,30/09/2017,C&M-PMS Prem Notional Rent,PRC DELEGATED CO-COMMISSIONING,RICHMOND MEDICAL CENTRE,18783779,"4,700.00 "
Department of Health,NHS Sheffield CCG,30/09/2017,C&M-PMS Prem Rates,PRC DELEGATED CO-COMMISSIONING,RICHMOND MEDICAL CENTRE,18783779,"1,139.00 "
Department of Health,NHS Sheffield CCG,30/09/2017,C&M-PMS QOF Aspiration,PRC DELEGATED CO-COMMISSIONING,RICHMOND MEDICAL CENTRE,18783779,"7,754.77 "
Department of Health,NHS Sheffield CCG,30/09/2017,Cont Care-Physical Disab (<65),CHC ADULT FULLY FUNDED,ROSEBERRY CARE CENTRES,18847697,"27,070.87 "
Department of Health,NHS Sheffield CCG,30/09/2017,Cont Care-Funded Nursing Care Allow,FUNDED NURSING CARE,ROSEBERRY CARE CENTRES,18849779,"33,835.21 "
Department of Health,NHS Sheffield CCG,30/09/2017,Cont Care-Funded Nursing Care Allow,FUNDED NURSING CARE,ROSEBERRY CARE CENTRES,18849799,"27,466.00 "
Department of Health,NHS Sheffield CCG,30/09/2017,Hcare Srv Rec Fdtn Trust-Contract Baseline,ACUTE COMMISSIONING,ROTHERHAM NHS FOUNDATION TRUST,18807976,"429,401.00 "
Department of Health,NHS Sheffield CCG,30/09/2017,C&M-PMS Contract Value,PRC DELEGATED CO-COMMISSIONING,RUSTLINGS ROAD MEDICAL CENTRE,18783781,"26,711.75 "
Department of Health,NHS Sheffield CCG,30/09/2017,C&M-PMS DES TPP QRISK,PRC DELEGATED CO-COMMISSIONING,RUSTLINGS ROAD MEDICAL CENTRE,18783781,442.00 
Department of Health,NHS Sheffield CCG,30/09/2017,C&M-PMS Funding Differential Review,PRC DELEGATED CO-COMMISSIONING,RUSTLINGS ROAD MEDICAL CENTRE,18783781,"1,235.92 "
Department of Health,NHS Sheffield CCG,30/09/2017,C&M-PMS Out of Hours Opt Outs,PRC DELEGATED CO-COMMISSIONING,RUSTLINGS ROAD MEDICAL CENTRE,18783781,28.11 
Department of Health,NHS Sheffield CCG,30/09/2017,C&M-PMS PCO Other,PRC DELEGATED CO-COMMISSIONING,RUSTLINGS ROAD MEDICAL CENTRE,18783781,384.50 
Department of Health,NHS Sheffield CCG,30/09/2017,C&M-PMS PCO Seniority,PRC DELEGATED CO-COMMISSIONING,RUSTLINGS ROAD MEDICAL CENTRE,18783781,"2,068.20 "
Department of Health,NHS Sheffield CCG,30/09/2017,C&M-PMS Prem Notional Rent,PRC DELEGATED CO-COMMISSIONING,RUSTLINGS ROAD MEDICAL CENTRE,18783781,"1,167.92 "
Department of Health,NHS Sheffield CCG,30/09/2017,C&M-PMS QOF Aspiration,PRC DELEGATED CO-COMMISSIONING,RUSTLINGS ROAD MEDICAL CENTRE,18783781,"2,481.56 "
Department of Health,NHS Sheffield CCG,30/09/2017,Cont Care-Funded Nursing Care Allow,FUNDED NURSING CARE,SCARSDALE GRANGE NURSING HOME,18849776,"25,184.55 "
Department of Health,NHS Sheffield CCG,30/09/2017,Cont Care-Physical Disab (<65),CHC ADULT FULLY FUNDED,SEVEN HILLS NURSING HOME,18847668,"34,630.06 "
Department of Health,NHS Sheffield CCG,30/09/2017,C&M-GMS Cost of Drugs -Prescribing,LOCAL ENHANCED SERVICES,SHARROW LANE MEDICAL CENTRE,18979800,985.00 
Department of Health,NHS Sheffield CCG,30/09/2017,C&M-GMS DES Extended Hours Access,PRC DELEGATED CO-COMMISSIONING,SHARROW LANE MEDICAL CENTRE,18979800,"1,822.58 "
Department of Health,NHS Sheffield CCG,30/09/2017,C&M-GMS DES TPP QRISK,PRC DELEGATED CO-COMMISSIONING,SHARROW LANE MEDICAL CENTRE,18979800,117.00 
Department of Health,NHS Sheffield CCG,30/09/2017,C&M-GMS Global Sum,PRC DELEGATED CO-COMMISSIONING,SHARROW LANE MEDICAL CENTRE,18979800,"21,737.40 "
Department of Health,NHS Sheffield CCG,30/09/2017,C&M-GMS MPIG Correction Factor,PRC DELEGATED CO-COMMISSIONING,SHARROW LANE MEDICAL CENTRE,18979800,"2,940.48 "
Department of Health,NHS Sheffield CCG,30/09/2017,C&M-GMS PCO Other,PRC DELEGATED CO-COMMISSIONING,SHARROW LANE MEDICAL CENTRE,18979800,384.50 
Department of Health,NHS Sheffield CCG,30/09/2017,C&M-GMS PCO Seniority,PRC DELEGATED CO-COMMISSIONING,SHARROW LANE MEDICAL CENTRE,18979800,245.70 
Department of Health,NHS Sheffield CCG,30/09/2017,C&M-GMS Prem Notional Rent,PRC DELEGATED CO-COMMISSIONING,SHARROW LANE MEDICAL CENTRE,18979800,"2,658.33 "
Department of Health,NHS Sheffield CCG,30/09/2017,C&M-GMS Prem Rates,PRC DELEGATED CO-COMMISSIONING,SHARROW LANE MEDICAL CENTRE,18979800,467.00 
Department of Health,NHS Sheffield CCG,30/09/2017,C&M-GMS Prem Water Rates,PRC DELEGATED CO-COMMISSIONING,SHARROW LANE MEDICAL CENTRE,18979800,169.20 
Department of Health,NHS Sheffield CCG,30/09/2017,C&M-GMS Prof Fees Prescribing,PRC DELEGATED CO-COMMISSIONING,SHARROW LANE MEDICAL CENTRE,18979800,143.47 
Department of Health,NHS Sheffield CCG,30/09/2017,C&M-GMS QOF Aspiration,PRC DELEGATED CO-COMMISSIONING,SHARROW LANE MEDICAL CENTRE,18979800,"2,727.76 "
Department of Health,NHS Sheffield CCG,30/09/2017,Hcare Srv Rec Fdtn Trust-CQUIN,ACUTE CHILDRENS SERVICES,SHEFFIELD CHILDRENS NHS FOUNDATION TRUST,18721784,"32,706.00 "
Department of Health,NHS Sheffield CCG,30/09/2017,Hcare Srv Rec Fdtn Trust-CQUIN,COMMUNITY SERVICES,SHEFFIELD CHILDRENS NHS FOUNDATION TRUST,18721784,"3,728.00 "
Department of Health,NHS Sheffield CCG,30/09/2017,Hcare Srv Rec Fdtn Trust-Contract Baseline,ACUTE CHILDRENS SERVICES,SHEFFIELD CHILDRENS NHS FOUNDATION TRUST,18721784,"235,977.00 "
Department of Health,NHS Sheffield CCG,30/09/2017,Hcare Srv Rec Fdtn Trust-Contract Baseline,CHILD AND ADOLESCENT MENTAL HEALTH,SHEFFIELD CHILDRENS NHS FOUNDATION TRUST,18721784,"367,086.00 "
Department of Health,NHS Sheffield CCG,30/09/2017,Hcare Srv Rec Fdtn Trust-Contract Baseline,COMMUNITY SERVICES,SHEFFIELD CHILDRENS NHS FOUNDATION TRUST,18721784,"298,241.00 "
Department of Health,NHS Sheffield CCG,30/09/2017,Hcare Srv Rec Fdtn Trust-Contract Baseline,HIGH COST DRUGS,SHEFFIELD CHILDRENS NHS FOUNDATION TRUST,18721784,"40,649.00 "
Department of Health,NHS Sheffield CCG,30/09/2017,Hcare Srv Rec Fdtn Trust-Contract Baseline,MENTAL HEALTH CONTRACTS,SHEFFIELD CHILDRENS NHS FOUNDATION TRUST,18721784,"5,277.00 "
Department of Health,NHS Sheffield CCG,30/09/2017,Hcare Srv Rec Fdtn Trust-Contract Baseline,PLANNED CARE,SHEFFIELD CHILDRENS NHS FOUNDATION TRUST,18721784,"965,735.00 "
Department of Health,NHS Sheffield CCG,30/09/2017,Hcare Srv Rec Fdtn Trust-Contract Baseline,SAFEGUARDING,SHEFFIELD CHILDRENS NHS FOUNDATION TRUST,18721784,"29,800.00 "
Department of Health,NHS Sheffield CCG,30/09/2017,Hcare Srv Rec Fdtn Trust-Contract Baseline,URGENT CARE,SHEFFIELD CHILDRENS NHS FOUNDATION TRUST,18721784,"988,358.00 "
Department of Health,NHS Sheffield CCG,30/09/2017,Cont Care- Children,CHC CHILDREN,SHEFFIELD CITY COUNCIL,18919290,"55,442.90 "
Department of Health,NHS Sheffield CCG,30/09/2017,Clinical&Medical-Othe Public Sector,COMMUNITY SERVICES,SHEFFIELD CITY COUNCIL,18919328,"21,831.00 "
Department of Health,NHS Sheffield CCG,30/09/2017,Clinical&Medical-Othe Public Sector,MENTAL HEALTH SERVICES - COLLABORATIVE COMMISSIONING,SHEFFIELD CITY COUNCIL,18919328,"16,919.00 "
Department of Health,NHS Sheffield CCG,30/09/2017,Clinical&Medical-Othe Public Sector,REABLEMENT,SHEFFIELD CITY COUNCIL,18919328,"160,417.00 "
Department of Health,NHS Sheffield CCG,30/09/2017,Clinical&Medical-Othe Public Sector,SAFEGUARDING,SHEFFIELD CITY COUNCIL,18919328,"15,324.00 "
Department of Health,NHS Sheffield CCG,30/09/2017,Soc Care-Joint H&C Teams/Working,INTERMEDIATE CARE,SHEFFIELD CITY COUNCIL,18919328,"88,060.00 "
Department of Health,NHS Sheffield CCG,30/09/2017,Soc Care-Learn Disab Servs,LEARNING DIFFICULTIES,SHEFFIELD CITY COUNCIL,18919328,"166,667.00 "
Department of Health,NHS Sheffield CCG,30/09/2017,Soc Care-Other Soc Care,COMMUNITY SERVICES,SHEFFIELD CITY COUNCIL,18919328,"1,467,750.00 "
Department of Health,NHS Sheffield CCG,30/09/2017,Soc Care-Re-ablement services,REABLEMENT,SHEFFIELD CITY COUNCIL,18919328,"63,387.00 "
Department of Health,NHS Sheffield CCG,30/09/2017,Soc Care-Support Prim Care,COMMUNITY SERVICES,SHEFFIELD CITY COUNCIL,18919328,"55,000.00 "
Department of Health,NHS Sheffield CCG,30/09/2017,Services From Local Authorities,MENTAL HEALTH SERVICES - COLLABORATIVE COMMISSIONING,SHEFFIELD CITY COUNCIL,18968094,"43,276.28 "
Department of Health,NHS Sheffield CCG,30/09/2017,Cont Care-Physical Disab (65+),CHC ADULT FULLY FUNDED,SHEFFIELD CITY COUNCIL,18993690,"844,589.39 "
Department of Health,NHS Sheffield CCG,30/09/2017,Cont Care-Physical Disab (65+),CHC ADULT FULLY FUNDED,SHEFFIELD CITY COUNCIL,19009840,"821,874.86 "
Department of Health,NHS Sheffield CCG,30/09/2017,Cont Care- Children,CHC CHILDREN,SHEFFIELD CITY COUNCIL,19017209,"30,934.34 "
Department of Health,NHS Sheffield CCG,30/09/2017,Clinical&Medical-Voluntary Sector,CHILD AND ADOLESCENT MENTAL HEALTH,SHEFFIELD FUTURES,18721837,"88,000.00 "
Department of Health,NHS Sheffield CCG,30/09/2017,C&M-APMS Contract Value,PRC DELEGATED CO-COMMISSIONING,SHEFFIELD HEALTH & SOCIAL CARE NHS FOUNDATION TRUST,18760284,(643.03)
Department of Health,NHS Sheffield CCG,30/09/2017,C&M-APMS DES UNPLANNED ADMISSIONS,PRC DELEGATED CO-COMMISSIONING,SHEFFIELD HEALTH & SOCIAL CARE NHS FOUNDATION TRUST,18760284,"(21,938.35)"
Department of Health,NHS Sheffield CCG,30/09/2017,C&M-APMS OOH Opt Outs,PRC DELEGATED CO-COMMISSIONING,SHEFFIELD HEALTH & SOCIAL CARE NHS FOUNDATION TRUST,18760284,"(5,718.20)"
Department of Health,NHS Sheffield CCG,30/09/2017,C&M-APMS Prem Healthcentre Rent,PRC DELEGATED CO-COMMISSIONING,SHEFFIELD HEALTH & SOCIAL CARE NHS FOUNDATION TRUST,18760284,"(16,821.06)"
Department of Health,NHS Sheffield CCG,30/09/2017,C&M-APMS Contract Value,PRC DELEGATED CO-COMMISSIONING,SHEFFIELD HEALTH & SOCIAL CARE NHS FOUNDATION TRUST,18783765,"119,551.04 "
Department of Health,NHS Sheffield CCG,30/09/2017,C&M-APMS DES Extended Hours Access,PRC DELEGATED CO-COMMISSIONING,SHEFFIELD HEALTH & SOCIAL CARE NHS FOUNDATION TRUST,18783765,"7,777.65 "
Department of Health,NHS Sheffield CCG,30/09/2017,C&M-APMS OOH Opt Outs,PRC DELEGATED CO-COMMISSIONING,SHEFFIELD HEALTH & SOCIAL CARE NHS FOUNDATION TRUST,18783765,31.63 
Department of Health,NHS Sheffield CCG,30/09/2017,C&M-APMS Prem Actual Rent,PRC DELEGATED CO-COMMISSIONING,SHEFFIELD HEALTH & SOCIAL CARE NHS FOUNDATION TRUST,18783765,"5,169.68 "
Department of Health,NHS Sheffield CCG,30/09/2017,C&M-APMS Prem Healthcentre Rent,PRC DELEGATED CO-COMMISSIONING,SHEFFIELD HEALTH & SOCIAL CARE NHS FOUNDATION TRUST,18783765,"70,812.05 "
Department of Health,NHS Sheffield CCG,30/09/2017,C&M-APMS Prem Notional Rent,PRC DELEGATED CO-COMMISSIONING,SHEFFIELD HEALTH & SOCIAL CARE NHS FOUNDATION TRUST,18783765,"2,804.17 "
Department of Health,NHS Sheffield CCG,30/09/2017,C&M-PMS DES TPP QRISK,PRC DELEGATED CO-COMMISSIONING,SHEFFIELD HEALTH & SOCIAL CARE NHS FOUNDATION TRUST,18783765,"1,046.50 "
Department of Health,NHS Sheffield CCG,30/09/2017,C&M-PMS QOF Aspiration,PRC DELEGATED CO-COMMISSIONING,SHEFFIELD HEALTH & SOCIAL CARE NHS FOUNDATION TRUST,18783765,"12,657.74 "
Department of Health,NHS Sheffield CCG,30/09/2017,C&M-APMS Contract Value,PRC DELEGATED CO-COMMISSIONING,SHEFFIELD HEALTH & SOCIAL CARE NHS FOUNDATION TRUST,18783792,"26,563.38 "
Department of Health,NHS Sheffield CCG,30/09/2017,C&M-APMS DES Extended Hours Access,PRC DELEGATED CO-COMMISSIONING,SHEFFIELD HEALTH & SOCIAL CARE NHS FOUNDATION TRUST,18783792,"2,150.80 "
Department of Health,NHS Sheffield CCG,30/09/2017,C&M-APMS OOH Opt Outs,PRC DELEGATED CO-COMMISSIONING,SHEFFIELD HEALTH & SOCIAL CARE NHS FOUNDATION TRUST,18783792,2.69 
Department of Health,NHS Sheffield CCG,30/09/2017,C&M-PMS DES TPP QRISK,PRC DELEGATED CO-COMMISSIONING,SHEFFIELD HEALTH & SOCIAL CARE NHS FOUNDATION TRUST,18783792,58.50 
Department of Health,NHS Sheffield CCG,30/09/2017,C&M-PMS QOF Aspiration,PRC DELEGATED CO-COMMISSIONING,SHEFFIELD HEALTH & SOCIAL CARE NHS FOUNDATION TRUST,18783792,"1,256.00 "
Department of Health,NHS Sheffield CCG,30/09/2017,Hcare Srv Rec Fdtn Trust-Contract Baseline,MENTAL HEALTH CONTRACTS,SHEFFIELD HEALTH & SOCIAL CARE NHS FOUNDATION TRUST,18808095,"6,013,427.33 "
Department of Health,NHS Sheffield CCG,30/09/2017,Cont Care-Foundation Trust,CHC ADULT FULLY FUNDED,SHEFFIELD HEALTH & SOCIAL CARE NHS FOUNDATION TRUST,18873079,"236,256.12 "
Department of Health,NHS Sheffield CCG,30/09/2017,Hcare Srv Rec Fdtn Trust-Contract Baseline,ACUTE COMMISSIONING,SHEFFIELD TEACHING HOSPITALS NHS FOUNDATION TRUST,18721802,"3,826,133.00 "
Department of Health,NHS Sheffield CCG,30/09/2017,Hcare Srv Rec Fdtn Trust-Contract Baseline,ACUTE COMMISSIONING,SHEFFIELD TEACHING HOSPITALS NHS FOUNDATION TRUST,18721819,"316,655.00 "
Department of Health,NHS Sheffield CCG,30/09/2017,Hcare Srv Rec Fdtn Trust-Contract Baseline,ACUTE COMMISSIONING,SHEFFIELD TEACHING HOSPITALS NHS FOUNDATION TRUST,18721823,"26,312,884.00 "
Department of Health,NHS Sheffield CCG,30/09/2017,Hcare Srv Rec Fdtn Trust-Contract Baseline,ACUTE COMMISSIONING,SHEFFIELD TEACHING HOSPITALS NHS FOUNDATION TRUST,18721828,"1,101,688.00 "
Department of Health,NHS Sheffield CCG,30/09/2017,Contract & Agency-Agency Int Mgr,BEREAVEMENT SERVICE,SHEFFIELD TEACHING HOSPITALS NHS FOUNDATION TRUST,18919356,"60,000.00 "
Department of Health,NHS Sheffield CCG,30/09/2017,C&M-GMS Cost of Drugs -Prescribing,LOCAL ENHANCED SERVICES,SHIREGREEN MEDICAL CENTRE,18961728,"2,456.77 "
Department of Health,NHS Sheffield CCG,30/09/2017,C&M-GMS DES Extended Hours Access,PRC DELEGATED CO-COMMISSIONING,SHIREGREEN MEDICAL CENTRE,18961728,"3,676.98 "
Department of Health,NHS Sheffield CCG,30/09/2017,C&M-GMS Global Sum,PRC DELEGATED CO-COMMISSIONING,SHIREGREEN MEDICAL CENTRE,18961728,"55,473.08 "
Department of Health,NHS Sheffield CCG,30/09/2017,C&M-GMS MPIG Correction Factor,PRC DELEGATED CO-COMMISSIONING,SHIREGREEN MEDICAL CENTRE,18961728,680.53 
Department of Health,NHS Sheffield CCG,30/09/2017,C&M-GMS PCO Other,PRC DELEGATED CO-COMMISSIONING,SHIREGREEN MEDICAL CENTRE,18961728,452.60 
Department of Health,NHS Sheffield CCG,30/09/2017,C&M-GMS PCO Seniority,PRC DELEGATED CO-COMMISSIONING,SHIREGREEN MEDICAL CENTRE,18961728,"3,210.36 "
Department of Health,NHS Sheffield CCG,30/09/2017,C&M-GMS Prem Cost Rent,PRC DELEGATED CO-COMMISSIONING,SHIREGREEN MEDICAL CENTRE,18961728,"1,792.33 "
Department of Health,NHS Sheffield CCG,30/09/2017,C&M-GMS Prem Notional Rent,PRC DELEGATED CO-COMMISSIONING,SHIREGREEN MEDICAL CENTRE,18961728,"5,375.00 "
Department of Health,NHS Sheffield CCG,30/09/2017,C&M-GMS Prem Rates,PRC DELEGATED CO-COMMISSIONING,SHIREGREEN MEDICAL CENTRE,18961728,"1,877.00 "
Department of Health,NHS Sheffield CCG,30/09/2017,C&M-GMS Prof Fees Prescribing,PRC DELEGATED CO-COMMISSIONING,SHIREGREEN MEDICAL CENTRE,18961728,326.26 
Department of Health,NHS Sheffield CCG,30/09/2017,C&M-GMS QOF Aspiration,PRC DELEGATED CO-COMMISSIONING,SHIREGREEN MEDICAL CENTRE,18961728,"6,614.14 "
Department of Health,NHS Sheffield CCG,30/09/2017,C&M-PMS Contract Value,PRC DELEGATED CO-COMMISSIONING,SLOAN MEDICAL CENTRE,18757120,"(1,316.27)"
Department of Health,NHS Sheffield CCG,30/09/2017,C&M-PMS GP Statutory Levy,PRC DELEGATED CO-COMMISSIONING,SLOAN MEDICAL CENTRE,18757120,(383.55)
Department of Health,NHS Sheffield CCG,30/09/2017,C&M-PMS Out of Hours Opt Outs,PRC DELEGATED CO-COMMISSIONING,SLOAN MEDICAL CENTRE,18757120,"(4,241.86)"
Department of Health,NHS Sheffield CCG,30/09/2017,C&M-PMS Voluntary Levy,PRC DELEGATED CO-COMMISSIONING,SLOAN MEDICAL CENTRE,18757120,(63.93)
Department of Health,NHS Sheffield CCG,30/09/2017,C&M-PMS Contract Value,PRC DELEGATED CO-COMMISSIONING,SLOAN MEDICAL CENTRE,18783782,"89,648.19 "
Department of Health,NHS Sheffield CCG,30/09/2017,C&M-PMS DES Extended Hours Access,PRC DELEGATED CO-COMMISSIONING,SLOAN MEDICAL CENTRE,18783782,"6,070.50 "
Department of Health,NHS Sheffield CCG,30/09/2017,C&M-PMS DES TPP QRISK,PRC DELEGATED CO-COMMISSIONING,SLOAN MEDICAL CENTRE,18783782,"1,001.00 "
Department of Health,NHS Sheffield CCG,30/09/2017,C&M-PMS Funding Differential Review,PRC DELEGATED CO-COMMISSIONING,SLOAN MEDICAL CENTRE,18783782,165.33 
Department of Health,NHS Sheffield CCG,30/09/2017,C&M-PMS Out of Hours Opt Outs,PRC DELEGATED CO-COMMISSIONING,SLOAN MEDICAL CENTRE,18783782,65.87 
Department of Health,NHS Sheffield CCG,30/09/2017,C&M-PMS PCO Other,PRC DELEGATED CO-COMMISSIONING,SLOAN MEDICAL CENTRE,18783782,523.70 
Department of Health,NHS Sheffield CCG,30/09/2017,C&M-PMS PCO Seniority,PRC DELEGATED CO-COMMISSIONING,SLOAN MEDICAL CENTRE,18783782,"7,379.36 "
Department of Health,NHS Sheffield CCG,30/09/2017,C&M-PMS Prem Actual Rent,PRC DELEGATED CO-COMMISSIONING,SLOAN MEDICAL CENTRE,18783782,"15,535.83 "
Department of Health,NHS Sheffield CCG,30/09/2017,C&M-PMS Prem Notional Rent,PRC DELEGATED CO-COMMISSIONING,SLOAN MEDICAL CENTRE,18783782,608.33 
Department of Health,NHS Sheffield CCG,30/09/2017,C&M-PMS Prem Rates,PRC DELEGATED CO-COMMISSIONING,SLOAN MEDICAL CENTRE,18783782,"2,990.00 "
Department of Health,NHS Sheffield CCG,30/09/2017,C&M-PMS QOF Aspiration,PRC DELEGATED CO-COMMISSIONING,SLOAN MEDICAL CENTRE,18783782,"10,663.96 "
Department of Health,NHS Sheffield CCG,30/09/2017,C&M-PMS Contract Value,PRC DELEGATED CO-COMMISSIONING,SOTHALL MEDICAL CENTRE,18783783,"68,917.89 "
Department of Health,NHS Sheffield CCG,30/09/2017,C&M-PMS DES Extended Hours Access,PRC DELEGATED CO-COMMISSIONING,SOTHALL MEDICAL CENTRE,18783783,"4,864.48 "
Department of Health,NHS Sheffield CCG,30/09/2017,C&M-PMS DES TPP QRISK,PRC DELEGATED CO-COMMISSIONING,SOTHALL MEDICAL CENTRE,18783783,799.50 
Department of Health,NHS Sheffield CCG,30/09/2017,C&M-PMS Funding Differential Review,PRC DELEGATED CO-COMMISSIONING,SOTHALL MEDICAL CENTRE,18783783,"3,463.83 "
Department of Health,NHS Sheffield CCG,30/09/2017,C&M-PMS Out of Hours Opt Outs,PRC DELEGATED CO-COMMISSIONING,SOTHALL MEDICAL CENTRE,18783783,97.87 
Department of Health,NHS Sheffield CCG,30/09/2017,C&M-PMS PCO Other,PRC DELEGATED CO-COMMISSIONING,SOTHALL MEDICAL CENTRE,18783783,523.70 
Department of Health,NHS Sheffield CCG,30/09/2017,C&M-PMS PCO Seniority,PRC DELEGATED CO-COMMISSIONING,SOTHALL MEDICAL CENTRE,18783783,"6,024.87 "
Department of Health,NHS Sheffield CCG,30/09/2017,C&M-PMS Prem Healthcentre Rent,PRC DELEGATED CO-COMMISSIONING,SOTHALL MEDICAL CENTRE,18783783,"2,953.43 "
Department of Health,NHS Sheffield CCG,30/09/2017,C&M-PMS Prem Notional Rent,PRC DELEGATED CO-COMMISSIONING,SOTHALL MEDICAL CENTRE,18783783,"5,116.67 "
Department of Health,NHS Sheffield CCG,30/09/2017,C&M-PMS Prem Rates,PRC DELEGATED CO-COMMISSIONING,SOTHALL MEDICAL CENTRE,18783783,"1,000.00 "
Department of Health,NHS Sheffield CCG,30/09/2017,C&M-PMS Prem Water Rates,PRC DELEGATED CO-COMMISSIONING,SOTHALL MEDICAL CENTRE,18783783,195.67 
Department of Health,NHS Sheffield CCG,30/09/2017,C&M-PMS QOF Aspiration,PRC DELEGATED CO-COMMISSIONING,SOTHALL MEDICAL CENTRE,18783783,"8,821.42 "
Department of Health,NHS Sheffield CCG,30/09/2017,Cont Care- Adult 100% Fully Funded,CHC ADULT FULLY FUNDED,SOUTH YORKSHIRE HOUSING ASSOCIATION LTD,18808069,"103,949.00 "
Department of Health,NHS Sheffield CCG,30/09/2017,Cont Care-Physical Disab (<65),CHC ADULT FULLY FUNDED,SOUTH YORKSHIRE HOUSING ASSOCIATION LTD,18808110,"73,195.25 "
Department of Health,NHS Sheffield CCG,30/09/2017,Cont Care- Adult 100% Fully Funded,CHC ADULT FULLY FUNDED,SOUTH YORKSHIRE HOUSING ASSOCIATION LTD,18847579,"25,500.00 "
Department of Health,NHS Sheffield CCG,30/09/2017,Clinical&Medical-Independent Sector,MENTAL HEALTH CONTRACTS,SOUTH YORKSHIRE HOUSING ASSOCIATION LTD,18919340,"34,435.00 "
Department of Health,NHS Sheffield CCG,30/09/2017,C&M-PMS Contract Value,PRC DELEGATED CO-COMMISSIONING,SOUTHEY GREEN MEDICAL CENTRE,18757128,"25,322.48 "
Department of Health,NHS Sheffield CCG,30/09/2017,C&M-PMS DES Extended Hours Access,PRC DELEGATED CO-COMMISSIONING,SOUTHEY GREEN MEDICAL CENTRE,18757128,"1,402.20 "
Department of Health,NHS Sheffield CCG,30/09/2017,C&M-PMS Funding Differential Review,PRC DELEGATED CO-COMMISSIONING,SOUTHEY GREEN MEDICAL CENTRE,18757128,127.58 
Department of Health,NHS Sheffield CCG,30/09/2017,C&M-PMS PCO Seniority,PRC DELEGATED CO-COMMISSIONING,SOUTHEY GREEN MEDICAL CENTRE,18757128,"1,250.71 "
Department of Health,NHS Sheffield CCG,30/09/2017,C&M-PMS Prem Notional Rent,PRC DELEGATED CO-COMMISSIONING,SOUTHEY GREEN MEDICAL CENTRE,18757128,"3,362.50 "
Department of Health,NHS Sheffield CCG,30/09/2017,C&M-PMS Prem Rates,PRC DELEGATED CO-COMMISSIONING,SOUTHEY GREEN MEDICAL CENTRE,18757128,"7,665.97 "
Department of Health,NHS Sheffield CCG,30/09/2017,C&M-PMS QOF Aspiration,PRC DELEGATED CO-COMMISSIONING,SOUTHEY GREEN MEDICAL CENTRE,18757128,"2,875.40 "
Department of Health,NHS Sheffield CCG,30/09/2017,Clinical&Medical-Voluntary Sector,HOSPICES,ST LUKES HOSPICE,18889258,"30,000.00 "
Department of Health,NHS Sheffield CCG,30/09/2017,C&M-GMS Cost of Drugs -Prescribing,LOCAL ENHANCED SERVICES,STANNINGTON MEDICAL CENTRE,18961733,296.26 
Department of Health,NHS Sheffield CCG,30/09/2017,C&M-GMS Global Sum,PRC DELEGATED CO-COMMISSIONING,STANNINGTON MEDICAL CENTRE,18961733,"22,713.77 "
Department of Health,NHS Sheffield CCG,30/09/2017,C&M-GMS PCO Other,PRC DELEGATED CO-COMMISSIONING,STANNINGTON MEDICAL CENTRE,18961733,384.50 
Department of Health,NHS Sheffield CCG,30/09/2017,C&M-GMS PCO Seniority,PRC DELEGATED CO-COMMISSIONING,STANNINGTON MEDICAL CENTRE,18961733,"1,463.82 "
Department of Health,NHS Sheffield CCG,30/09/2017,C&M-GMS Prem Notional Rent,PRC DELEGATED CO-COMMISSIONING,STANNINGTON MEDICAL CENTRE,18961733,"2,533.33 "
Department of Health,NHS Sheffield CCG,30/09/2017,C&M-GMS Prem Rates,PRC DELEGATED CO-COMMISSIONING,STANNINGTON MEDICAL CENTRE,18961733,482.00 
Department of Health,NHS Sheffield CCG,30/09/2017,C&M-GMS Prof Fees Prescribing,PRC DELEGATED CO-COMMISSIONING,STANNINGTON MEDICAL CENTRE,18961733,50.91 
Department of Health,NHS Sheffield CCG,30/09/2017,C&M-GMS QOF Aspiration,PRC DELEGATED CO-COMMISSIONING,STANNINGTON MEDICAL CENTRE,18961733,"3,253.08 "
Department of Health,NHS Sheffield CCG,30/09/2017,C&M-GMS DES Extended Hours Access,PRC DELEGATED CO-COMMISSIONING,STONECROFT MEDICAL CENTRE,18979802,"1,295.80 "
Department of Health,NHS Sheffield CCG,30/09/2017,C&M-GMS Global Sum,PRC DELEGATED CO-COMMISSIONING,STONECROFT MEDICAL CENTRE,18979802,"29,844.25 "
Department of Health,NHS Sheffield CCG,30/09/2017,C&M-GMS MPIG Correction Factor,PRC DELEGATED CO-COMMISSIONING,STONECROFT MEDICAL CENTRE,18979802,927.38 
Department of Health,NHS Sheffield CCG,30/09/2017,C&M-GMS PCO Other,PRC DELEGATED CO-COMMISSIONING,STONECROFT MEDICAL CENTRE,18979802,384.50 
Department of Health,NHS Sheffield CCG,30/09/2017,C&M-GMS PCO Seniority,PRC DELEGATED CO-COMMISSIONING,STONECROFT MEDICAL CENTRE,18979802,"2,164.72 "
Department of Health,NHS Sheffield CCG,30/09/2017,C&M-GMS Prem Notional Rent,PRC DELEGATED CO-COMMISSIONING,STONECROFT MEDICAL CENTRE,18979802,"2,808.33 "
Department of Health,NHS Sheffield CCG,30/09/2017,C&M-GMS Prem Rates,PRC DELEGATED CO-COMMISSIONING,STONECROFT MEDICAL CENTRE,18979802,"1,083.00 "
Department of Health,NHS Sheffield CCG,30/09/2017,C&M-GMS QOF Aspiration,PRC DELEGATED CO-COMMISSIONING,STONECROFT MEDICAL CENTRE,18979802,"4,224.91 "
Department of Health,NHS Sheffield CCG,30/09/2017,Clinical&Medical-Independent Sector,MENTAL HEALTH CONTRACTS,SUSASH GB LTD T/A EAGLE HOUSE,18919345,"30,092.00 "
Department of Health,NHS Sheffield CCG,30/09/2017,C&M-GMS Cost of Drugs -Prescribing,LOCAL ENHANCED SERVICES,TOTLEY RISE MEDICAL CENTRE,18979803,314.50 
Department of Health,NHS Sheffield CCG,30/09/2017,C&M-GMS DES TPP QRISK,PRC DELEGATED CO-COMMISSIONING,TOTLEY RISE MEDICAL CENTRE,18979803,175.50 
Department of Health,NHS Sheffield CCG,30/09/2017,C&M-GMS Global Sum,PRC DELEGATED CO-COMMISSIONING,TOTLEY RISE MEDICAL CENTRE,18979803,"21,982.63 "
Department of Health,NHS Sheffield CCG,30/09/2017,C&M-GMS MPIG Correction Factor,PRC DELEGATED CO-COMMISSIONING,TOTLEY RISE MEDICAL CENTRE,18979803,154.70 
Department of Health,NHS Sheffield CCG,30/09/2017,C&M-GMS PCO Locum Adop/Pat/Mat,PRC DELEGATED CO-COMMISSIONING,TOTLEY RISE MEDICAL CENTRE,18979803,"5,104.12 "
Department of Health,NHS Sheffield CCG,30/09/2017,C&M-GMS PCO Other,PRC DELEGATED CO-COMMISSIONING,TOTLEY RISE MEDICAL CENTRE,18979803,384.50 
Department of Health,NHS Sheffield CCG,30/09/2017,C&M-GMS PCO Seniority,PRC DELEGATED CO-COMMISSIONING,TOTLEY RISE MEDICAL CENTRE,18979803,"1,825.18 "
Department of Health,NHS Sheffield CCG,30/09/2017,C&M-GMS Prem Notional Rent,PRC DELEGATED CO-COMMISSIONING,TOTLEY RISE MEDICAL CENTRE,18979803,"1,491.67 "
Department of Health,NHS Sheffield CCG,30/09/2017,C&M-GMS Prem Rates,PRC DELEGATED CO-COMMISSIONING,TOTLEY RISE MEDICAL CENTRE,18979803,136.00 
Department of Health,NHS Sheffield CCG,30/09/2017,C&M-GMS Prof Fees Prescribing,PRC DELEGATED CO-COMMISSIONING,TOTLEY RISE MEDICAL CENTRE,18979803,53.22 
Department of Health,NHS Sheffield CCG,30/09/2017,C&M-GMS QOF Aspiration,PRC DELEGATED CO-COMMISSIONING,TOTLEY RISE MEDICAL CENTRE,18979803,"2,269.92 "
Department of Health,NHS Sheffield CCG,30/09/2017,C&M-GMS Cost of Drugs -Prescribing,LOCAL ENHANCED SERVICES,TRAMWAYS MEDICAL CENTRE,18979804,"1,158.03 "
Department of Health,NHS Sheffield CCG,30/09/2017,C&M-GMS DES TPP QRISK,PRC DELEGATED CO-COMMISSIONING,TRAMWAYS MEDICAL CENTRE,18979804,591.50 
Department of Health,NHS Sheffield CCG,30/09/2017,C&M-GMS Global Sum,PRC DELEGATED CO-COMMISSIONING,TRAMWAYS MEDICAL CENTRE,18979804,"58,565.01 "
Department of Health,NHS Sheffield CCG,30/09/2017,C&M-GMS PCO Other,PRC DELEGATED CO-COMMISSIONING,TRAMWAYS MEDICAL CENTRE,18979804,452.60 
Department of Health,NHS Sheffield CCG,30/09/2017,C&M-GMS PCO Seniority,PRC DELEGATED CO-COMMISSIONING,TRAMWAYS MEDICAL CENTRE,18979804,"5,928.34 "
Department of Health,NHS Sheffield CCG,30/09/2017,C&M-GMS Prem Cost Rent,PRC DELEGATED CO-COMMISSIONING,TRAMWAYS MEDICAL CENTRE,18979804,"4,012.75 "
Department of Health,NHS Sheffield CCG,30/09/2017,C&M-GMS Prem Rates,PRC DELEGATED CO-COMMISSIONING,TRAMWAYS MEDICAL CENTRE,18979804,889.00 
Department of Health,NHS Sheffield CCG,30/09/2017,C&M-GMS Prof Fees Prescribing,PRC DELEGATED CO-COMMISSIONING,TRAMWAYS MEDICAL CENTRE,18979804,196.69 
Department of Health,NHS Sheffield CCG,30/09/2017,C&M-GMS QOF Aspiration,PRC DELEGATED CO-COMMISSIONING,TRAMWAYS MEDICAL CENTRE,18979804,"6,336.58 "
Department of Health,NHS Sheffield CCG,30/09/2017,Cont Care-Funded Nursing Care Allow,FUNDED NURSING CARE,ULTIMA CARE CENTRES (NO1) LTD,18847605,"40,047.20 "
Department of Health,NHS Sheffield CCG,30/09/2017,C&M-PMS Contract Value,PRC DELEGATED CO-COMMISSIONING,UNIVERSITY HEALTH SERVICE,18783785,"(20,477.24)"
Department of Health,NHS Sheffield CCG,30/09/2017,C&M-PMS GP Statutory Levy,PRC DELEGATED CO-COMMISSIONING,UNIVERSITY HEALTH SERVICE,18783785,(866.97)
Department of Health,NHS Sheffield CCG,30/09/2017,C&M-PMS Out of Hours Opt Outs,PRC DELEGATED CO-COMMISSIONING,UNIVERSITY HEALTH SERVICE,18783785,"(6,958.53)"
Department of Health,NHS Sheffield CCG,30/09/2017,C&M-PMS Voluntary Levy,PRC DELEGATED CO-COMMISSIONING,UNIVERSITY HEALTH SERVICE,18783785,(144.50)
Department of Health,NHS Sheffield CCG,30/09/2017,C&M-PMS Contract Value,PRC DELEGATED CO-COMMISSIONING,UNIVERSITY HEALTH SERVICE,18783786,"142,358.88 "
Department of Health,NHS Sheffield CCG,30/09/2017,C&M-PMS Out of Hours Opt Outs,PRC DELEGATED CO-COMMISSIONING,UNIVERSITY HEALTH SERVICE,18783786,"1,023.20 "
Department of Health,NHS Sheffield CCG,30/09/2017,C&M-PMS PCO Locum Adop/Pat/Mat,PRC DELEGATED CO-COMMISSIONING,UNIVERSITY HEALTH SERVICE,18783786,"4,400.00 "
Department of Health,NHS Sheffield CCG,30/09/2017,C&M-PMS PCO Seniority,PRC DELEGATED CO-COMMISSIONING,UNIVERSITY HEALTH SERVICE,18783786,"6,567.73 "
Department of Health,NHS Sheffield CCG,30/09/2017,C&M-PMS Prem Notional Rent,PRC DELEGATED CO-COMMISSIONING,UNIVERSITY HEALTH SERVICE,18783786,"15,833.33 "
Department of Health,NHS Sheffield CCG,30/09/2017,C&M-PMS Prem Water Rates,PRC DELEGATED CO-COMMISSIONING,UNIVERSITY HEALTH SERVICE,18783786,560.61 
Department of Health,NHS Sheffield CCG,30/09/2017,C&M-PMS QOF Aspiration,PRC DELEGATED CO-COMMISSIONING,UNIVERSITY HEALTH SERVICE,18783786,"3,640.26 "
Department of Health,NHS Sheffield CCG,30/09/2017,C&M-GMS Cost of Drugs -Prescribing,LOCAL ENHANCED SERVICES,UPPERTHORPE MEDICAL CENTRE,18979805,"1,832.04 "
Department of Health,NHS Sheffield CCG,30/09/2017,C&M-GMS DES Extended Hours Access,PRC DELEGATED CO-COMMISSIONING,UPPERTHORPE MEDICAL CENTRE,18979805,"5,326.65 "
Department of Health,NHS Sheffield CCG,30/09/2017,C&M-GMS DES TPP QRISK,PRC DELEGATED CO-COMMISSIONING,UPPERTHORPE MEDICAL CENTRE,18979805,598.00 
Department of Health,NHS Sheffield CCG,30/09/2017,C&M-GMS Global Sum,PRC DELEGATED CO-COMMISSIONING,UPPERTHORPE MEDICAL CENTRE,18979805,"75,439.39 "
Department of Health,NHS Sheffield CCG,30/09/2017,C&M-GMS MPIG Correction Factor,PRC DELEGATED CO-COMMISSIONING,UPPERTHORPE MEDICAL CENTRE,18979805,"1,988.60 "
Department of Health,NHS Sheffield CCG,30/09/2017,C&M-GMS PCO Seniority,PRC DELEGATED CO-COMMISSIONING,UPPERTHORPE MEDICAL CENTRE,18979805,"4,307.71 "
Department of Health,NHS Sheffield CCG,30/09/2017,C&M-GMS Prem Actual Rent,PRC DELEGATED CO-COMMISSIONING,UPPERTHORPE MEDICAL CENTRE,18979805,"29,475.00 "
Department of Health,NHS Sheffield CCG,30/09/2017,C&M-GMS Prem Notional Rent,PRC DELEGATED CO-COMMISSIONING,UPPERTHORPE MEDICAL CENTRE,18979805,"2,497.83 "
Department of Health,NHS Sheffield CCG,30/09/2017,C&M-GMS Prem Rates,PRC DELEGATED CO-COMMISSIONING,UPPERTHORPE MEDICAL CENTRE,18979805,"2,044.00 "
Department of Health,NHS Sheffield CCG,30/09/2017,C&M-GMS Prem Water Rates,PRC DELEGATED CO-COMMISSIONING,UPPERTHORPE MEDICAL CENTRE,18979805,248.72 
Department of Health,NHS Sheffield CCG,30/09/2017,C&M-GMS Prof Fees Prescribing,PRC DELEGATED CO-COMMISSIONING,UPPERTHORPE MEDICAL CENTRE,18979805,249.90 
Department of Health,NHS Sheffield CCG,30/09/2017,C&M-GMS QOF Aspiration,PRC DELEGATED CO-COMMISSIONING,UPPERTHORPE MEDICAL CENTRE,18979805,"9,309.14 "
Department of Health,NHS Sheffield CCG,30/09/2017,C&M-PMS Contract Value,PRC DELEGATED CO-COMMISSIONING,UPWELL STREET SURGERY,18757135,"37,326.83 "
Department of Health,NHS Sheffield CCG,30/09/2017,C&M-PMS DES Extended Hours Access,PRC DELEGATED CO-COMMISSIONING,UPWELL STREET SURGERY,18757135,"2,300.90 "
Department of Health,NHS Sheffield CCG,30/09/2017,C&M-PMS Funding Differential Review,PRC DELEGATED CO-COMMISSIONING,UPWELL STREET SURGERY,18757135,"2,004.50 "
Department of Health,NHS Sheffield CCG,30/09/2017,C&M-PMS Out of Hours Opt Outs,PRC DELEGATED CO-COMMISSIONING,UPWELL STREET SURGERY,18757135,136.25 
Department of Health,NHS Sheffield CCG,30/09/2017,C&M-PMS PCO Other,PRC DELEGATED CO-COMMISSIONING,UPWELL STREET SURGERY,18757135,384.50 
Department of Health,NHS Sheffield CCG,30/09/2017,C&M-PMS PCO Seniority,PRC DELEGATED CO-COMMISSIONING,UPWELL STREET SURGERY,18757135,"3,878.31 "
Department of Health,NHS Sheffield CCG,30/09/2017,C&M-PMS Prem Actual Rent,PRC DELEGATED CO-COMMISSIONING,UPWELL STREET SURGERY,18757135,"8,137.50 "
Department of Health,NHS Sheffield CCG,30/09/2017,C&M-PMS Prem Notional Rent,PRC DELEGATED CO-COMMISSIONING,UPWELL STREET SURGERY,18757135,"8,137.50 "
Department of Health,NHS Sheffield CCG,30/09/2017,C&M-PMS Prem Rates,PRC DELEGATED CO-COMMISSIONING,UPWELL STREET SURGERY,18757135,984.00 
Department of Health,NHS Sheffield CCG,30/09/2017,C&M-PMS QOF Aspiration,PRC DELEGATED CO-COMMISSIONING,UPWELL STREET SURGERY,18757135,"4,877.64 "
Department of Health,NHS Sheffield CCG,30/09/2017,C&M-PMS Contract Value,PRC DELEGATED CO-COMMISSIONING,VALLEY MEDICAL CENTRE,18783787,(36.06)
Department of Health,NHS Sheffield CCG,30/09/2017,C&M-PMS GP Statutory Levy,PRC DELEGATED CO-COMMISSIONING,VALLEY MEDICAL CENTRE,18783787,(287.43)
Department of Health,NHS Sheffield CCG,30/09/2017,C&M-PMS Out of Hours Opt Outs,PRC DELEGATED CO-COMMISSIONING,VALLEY MEDICAL CENTRE,18783787,"(3,532.34)"
Department of Health,NHS Sheffield CCG,30/09/2017,C&M-PMS Voluntary Levy,PRC DELEGATED CO-COMMISSIONING,VALLEY MEDICAL CENTRE,18783787,(47.91)
Department of Health,NHS Sheffield CCG,30/09/2017,C&M-PMS Contract Value,PRC DELEGATED CO-COMMISSIONING,VALLEY MEDICAL CENTRE,18783788,"74,774.73 "
Department of Health,NHS Sheffield CCG,30/09/2017,C&M-PMS DES TPP QRISK,PRC DELEGATED CO-COMMISSIONING,VALLEY MEDICAL CENTRE,18783788,741.00 
Department of Health,NHS Sheffield CCG,30/09/2017,C&M-PMS Funding Differential Review,PRC DELEGATED CO-COMMISSIONING,VALLEY MEDICAL CENTRE,18783788,271.17 
Department of Health,NHS Sheffield CCG,30/09/2017,C&M-PMS Out of Hours Opt Outs,PRC DELEGATED CO-COMMISSIONING,VALLEY MEDICAL CENTRE,18783788,1.79 
Department of Health,NHS Sheffield CCG,30/09/2017,C&M-PMS PCO Seniority,PRC DELEGATED CO-COMMISSIONING,VALLEY MEDICAL CENTRE,18783788,"5,189.60 "
Department of Health,NHS Sheffield CCG,30/09/2017,C&M-PMS Prem Rates,PRC DELEGATED CO-COMMISSIONING,VALLEY MEDICAL CENTRE,18783788,"1,083.00 "
Department of Health,NHS Sheffield CCG,30/09/2017,C&M-PMS QOF Aspiration,PRC DELEGATED CO-COMMISSIONING,VALLEY MEDICAL CENTRE,18783788,"9,125.55 "
Department of Health,NHS Sheffield CCG,30/09/2017,C&M-GMS Cost of Drugs -Prescribing,LOCAL ENHANCED SERVICES,WALKLEY HOUSE MEDICAL CENTRE,18979807,"1,537.22 "
Department of Health,NHS Sheffield CCG,30/09/2017,C&M-GMS DES TPP QRISK,PRC DELEGATED CO-COMMISSIONING,WALKLEY HOUSE MEDICAL CENTRE,18979807,806.00 
Department of Health,NHS Sheffield CCG,30/09/2017,C&M-GMS Global Sum,PRC DELEGATED CO-COMMISSIONING,WALKLEY HOUSE MEDICAL CENTRE,18979807,"77,980.42 "
Department of Health,NHS Sheffield CCG,30/09/2017,C&M-GMS PCO Seniority,PRC DELEGATED CO-COMMISSIONING,WALKLEY HOUSE MEDICAL CENTRE,18979807,"5,174.82 "
Department of Health,NHS Sheffield CCG,30/09/2017,C&M-GMS Prem Notional Rent,PRC DELEGATED CO-COMMISSIONING,WALKLEY HOUSE MEDICAL CENTRE,18979807,"5,581.34 "
Department of Health,NHS Sheffield CCG,30/09/2017,C&M-GMS Prof Fees Prescribing,PRC DELEGATED CO-COMMISSIONING,WALKLEY HOUSE MEDICAL CENTRE,18979807,175.87 
Department of Health,NHS Sheffield CCG,30/09/2017,C&M-GMS QOF Aspiration,PRC DELEGATED CO-COMMISSIONING,WALKLEY HOUSE MEDICAL CENTRE,18979807,"8,922.54 "
Department of Health,NHS Sheffield CCG,30/09/2017,C&M-GMS Cost of Drugs -Prescribing,LOCAL ENHANCED SERVICES,WHITE HOUSE SURGERY SHEFFIELD,18979806,988.99 
Department of Health,NHS Sheffield CCG,30/09/2017,C&M-GMS DES Extended Hours Access,PRC DELEGATED CO-COMMISSIONING,WHITE HOUSE SURGERY SHEFFIELD,18979806,"2,994.88 "
Department of Health,NHS Sheffield CCG,30/09/2017,C&M-GMS DES TPP QRISK,PRC DELEGATED CO-COMMISSIONING,WHITE HOUSE SURGERY SHEFFIELD,18979806,448.50 
Department of Health,NHS Sheffield CCG,30/09/2017,C&M-GMS Global Sum,PRC DELEGATED CO-COMMISSIONING,WHITE HOUSE SURGERY SHEFFIELD,18979806,"46,834.45 "
Department of Health,NHS Sheffield CCG,30/09/2017,C&M-GMS MPIG Correction Factor,PRC DELEGATED CO-COMMISSIONING,WHITE HOUSE SURGERY SHEFFIELD,18979806,"2,086.94 "
Department of Health,NHS Sheffield CCG,30/09/2017,C&M-GMS PCO Seniority,PRC DELEGATED CO-COMMISSIONING,WHITE HOUSE SURGERY SHEFFIELD,18979806,"2,690.17 "
Department of Health,NHS Sheffield CCG,30/09/2017,C&M-GMS Prem Notional Rent,PRC DELEGATED CO-COMMISSIONING,WHITE HOUSE SURGERY SHEFFIELD,18979806,"9,104.17 "
Department of Health,NHS Sheffield CCG,30/09/2017,C&M-GMS Prem Rates,PRC DELEGATED CO-COMMISSIONING,WHITE HOUSE SURGERY SHEFFIELD,18979806,"2,013.00 "
Department of Health,NHS Sheffield CCG,30/09/2017,C&M-GMS Prem Water Rates,PRC DELEGATED CO-COMMISSIONING,WHITE HOUSE SURGERY SHEFFIELD,18979806,297.38 
Department of Health,NHS Sheffield CCG,30/09/2017,C&M-GMS Prof Fees Prescribing,PRC DELEGATED CO-COMMISSIONING,WHITE HOUSE SURGERY SHEFFIELD,18979806,254.54 
Department of Health,NHS Sheffield CCG,30/09/2017,C&M-GMS QOF Aspiration,PRC DELEGATED CO-COMMISSIONING,WHITE HOUSE SURGERY SHEFFIELD,18979806,"6,083.99 "
Department of Health,NHS Sheffield CCG,30/09/2017,Cont Care-Physical Disab (<65),CHC ADULT FULLY FUNDED,WILLOWBECK HEALTH CARE LTD,18808180,"157,196.77 "
Department of Health,NHS Sheffield CCG,30/09/2017,C&M-PMS Contract Value,PRC DELEGATED CO-COMMISSIONING,WINCOBANK MEDICAL CENTRE,18757139,"59,370.97 "
Department of Health,NHS Sheffield CCG,30/09/2017,C&M-PMS Funding Differential Review,PRC DELEGATED CO-COMMISSIONING,WINCOBANK MEDICAL CENTRE,18757139,9.92 
Department of Health,NHS Sheffield CCG,30/09/2017,C&M-PMS PCO Seniority,PRC DELEGATED CO-COMMISSIONING,WINCOBANK MEDICAL CENTRE,18757139,"2,367.63 "
Department of Health,NHS Sheffield CCG,30/09/2017,C&M-PMS Prem Healthcentre Rent,PRC DELEGATED CO-COMMISSIONING,WINCOBANK MEDICAL CENTRE,18757139,"50,647.68 "
Department of Health,NHS Sheffield CCG,30/09/2017,C&M-PMS QOF Aspiration,PRC DELEGATED CO-COMMISSIONING,WINCOBANK MEDICAL CENTRE,18757139,"6,934.01 "
Department of Health,NHS Sheffield CCG,30/09/2017,C&M-PMS Contract Value,PRC DELEGATED CO-COMMISSIONING,WOODHOUSE HEALTH CENTRE,18783789,"95,330.65 "
Department of Health,NHS Sheffield CCG,30/09/2017,C&M-PMS DES Extended Hours Access,PRC DELEGATED CO-COMMISSIONING,WOODHOUSE HEALTH CENTRE,18783789,"5,784.08 "
Department of Health,NHS Sheffield CCG,30/09/2017,C&M-PMS DES Learn Dsblty Hlth Chk,PRC DELEGATED CO-COMMISSIONING,WOODHOUSE HEALTH CENTRE,18783789,980.00 
Department of Health,NHS Sheffield CCG,30/09/2017,C&M-PMS DES TPP QRISK,PRC DELEGATED CO-COMMISSIONING,WOODHOUSE HEALTH CENTRE,18783789,45.50 
Department of Health,NHS Sheffield CCG,30/09/2017,C&M-PMS Funding Differential Review,PRC DELEGATED CO-COMMISSIONING,WOODHOUSE HEALTH CENTRE,18783789,"2,776.33 "
Department of Health,NHS Sheffield CCG,30/09/2017,C&M-PMS Out of Hours Opt Outs,PRC DELEGATED CO-COMMISSIONING,WOODHOUSE HEALTH CENTRE,18783789,14.44 
Department of Health,NHS Sheffield CCG,30/09/2017,C&M-PMS PCO Seniority,PRC DELEGATED CO-COMMISSIONING,WOODHOUSE HEALTH CENTRE,18783789,"5,692.08 "
Department of Health,NHS Sheffield CCG,30/09/2017,C&M-PMS Prem Notional Rent,PRC DELEGATED CO-COMMISSIONING,WOODHOUSE HEALTH CENTRE,18783789,"6,338.58 "
Department of Health,NHS Sheffield CCG,30/09/2017,C&M-PMS QOF Aspiration,PRC DELEGATED CO-COMMISSIONING,WOODHOUSE HEALTH CENTRE,18783789,"14,743.27 "
Department of Health,NHS Sheffield CCG,30/09/2017,C&M-PMS Contract Value,PRC DELEGATED CO-COMMISSIONING,WOODSEATS MEDICAL CENTRE,18783790,"67,257.26 "
Department of Health,NHS Sheffield CCG,30/09/2017,C&M-PMS DES Extended Hours Access,PRC DELEGATED CO-COMMISSIONING,WOODSEATS MEDICAL CENTRE,18783790,"4,329.15 "
Department of Health,NHS Sheffield CCG,30/09/2017,C&M-PMS DES TPP QRISK,PRC DELEGATED CO-COMMISSIONING,WOODSEATS MEDICAL CENTRE,18783790,845.00 
Department of Health,NHS Sheffield CCG,30/09/2017,C&M-PMS Funding Differential Review,PRC DELEGATED CO-COMMISSIONING,WOODSEATS MEDICAL CENTRE,18783790,397.08 
Department of Health,NHS Sheffield CCG,30/09/2017,C&M-PMS PCO Other,PRC DELEGATED CO-COMMISSIONING,WOODSEATS MEDICAL CENTRE,18783790,452.60 
Department of Health,NHS Sheffield CCG,30/09/2017,C&M-PMS PCO Seniority,PRC DELEGATED CO-COMMISSIONING,WOODSEATS MEDICAL CENTRE,18783790,"2,832.17 "
Department of Health,NHS Sheffield CCG,30/09/2017,C&M-PMS Prem Notional Rent,PRC DELEGATED CO-COMMISSIONING,WOODSEATS MEDICAL CENTRE,18783790,"3,578.92 "
Department of Health,NHS Sheffield CCG,30/09/2017,C&M-PMS Prem Rates,PRC DELEGATED CO-COMMISSIONING,WOODSEATS MEDICAL CENTRE,18783790,"1,233.00 "
Department of Health,NHS Sheffield CCG,30/09/2017,C&M-PMS QOF Aspiration,PRC DELEGATED CO-COMMISSIONING,WOODSEATS MEDICAL CENTRE,18783790,"8,124.33 "
Department of Health,NHS Sheffield CCG,30/09/2017,Hcare Srv Rec NHS Trust-Contract Baseline,AMBULANCE SERVICES,YORKSHIRE AMBULANCE SERVICE NHS TRUST,18721851,"1,440,139.00 "
Department of Health,NHS Sheffield CCG,30/09/2017,Hcare Srv Rec NHS Trust-Contract Baseline,PATIENT TRANSPORT,YORKSHIRE AMBULANCE SERVICE NHS TRUST,18721854,"255,744.52 "
Department of Health,NHS Sheffield CCG,30/09/2017,Hcare Srv Rec NHS Trust-Contract Baseline,NHS 111,YORKSHIRE AMBULANCE SERVICE NHS TRUST,18721857,"89,944.00 "
Department of Health,NHS Sheffield CCG,30/09/2017,Hcare Srv Rec NHS Trust-Contract Baseline,AMBULANCE SERVICES,YORKSHIRE AMBULANCE SERVICE NHS TRUST,18721861,"123,979.00 "
Department of Health,NHS Sheffield CCG,30/09/2017,Hcare Srv Rec NHS Trust-CQUIN,AMBULANCE SERVICES,YORKSHIRE AMBULANCE SERVICE NHS TRUST,18808007,"27,566.00 "
Department of Health,NHS Sheffield CCG,30/09/2017,Hcare Srv Rec NHS Trust-Contract Baseline,NHS 111,YORKSHIRE AMBULANCE SERVICE NHS TRUST,18828746,"51,982.36 "
Department of Health,NHS Sheffield CCG,30/09/2017,Hcare Srv Rec NHS Trust-Contract Baseline,AMBULANCE SERVICES,YORKSHIRE AMBULANCE SERVICE NHS TRUST,18919300,"134,253.00 "
Department of Health,NHS Sheffield CCG,30/09/2017,Hcare Srv Rec NHS Trust-Contract Baseline,AMBULANCE SERVICES,YORKSHIRE AMBULANCE SERVICE NHS TRUST,18919366,"(119,336.00)"
,,,,,,,"56,685,818.95 "
